Workbook

Sheet DAMAN
A1: GANPATI PETROCHEMICALS
A2: Consigment Stockist of : HALDIA PETROCHEMICALS LTD.
A3: 152,Sanjay Bldg. No. 6,Mittal Ind.Estate,Andheri Kurla Road,Marol,Andheri(East),MUMBAI-400 059.
A4: Tel. 28509801 / 28517451 / 32460637 Telefax. 28509802 / E- MAIL ganpetro@vsnl.com
A5: HDPE / PP / LLDPE PRICES EX-HALDIA PETROCHEMICALS LTD. PLANT FOR DAMAN, SILVASSA & DADRA
A6: Daman W.H. Add :- House no. DGGP / 10-B, Survey No. 747 & 748, Village Kalaria, Nani Daman, Daman - 396210, Tel:-0260-2240086, 9377319643
A7: HDPE, LLDPE & PP PRICE W.E.F. DT. 13.06.2013
A8: GRADE | B8: BASIC | C8: LESS. | D8: LESS. | E8: ADD E.D | F8: ADD CST | G8: ADD | H8: ADD S.T. | I8: CASH AMT
A9: HDPE | C9: C.D. | D9: LOC.SUB | E9: 0.1236 | F9: 0.02 | G9: TRANSP | H9: 0.0309 | I9: PMT
A10: IM 6007L / M 5005L | B10: 95050 | C10: 1000 | D10: 5900 | E10: =+(B10-C10-D10)*0.1236 -> 10895.34 | F10: =+(B10-C10-D10+E10)*0.02 -> 1980.9068 | G10: 3063 | H10: =+G10*0.0309 -> 94.6467 | I10: =+B10-C10-D10+E10+F10+G10+H10 -> 104183.8935
A11: IM( 7MFI) M 6007LU | B11: 96550 | C11: 1000 | D11: 5900 | E11: =+(B11-C11-D11)*0.1236 -> 11080.74 | F11: =+(B11-C11-D11+E11)*0.02 -> 2014.6148 | G11: 3063 | H11: =+G11*0.0309 -> 94.6467 | I11: =+B11-C11-D11+E11+F11+G11+H11 -> 105903.0015
A12: IM( 4.5 MFI ) M 5002L | B12: 94550 | C12: 1000 | D12: 5900 | E12: 10833.54 | F12: 1969.6708 | G12: 3063 | H12: 94.6467 | I12: 103610.8575
A13: HD BM B 6401 | B13: 94000 | C13: 1000 | D13: 5950 | E13: 10759.38 | F13: 1956.1876 | G13: 3063 | H13: 94.6467 | I13: 102923.2143
A14: HD BM E 5201 | B14: 95500 | C14: 1000 | D14: 5950 | E14: 10944.78 | F14: 1989.8956 | G14: 3063 | H14: 94.6467 | I14: 104642.3223
A15: HD BM E5201S | B15: 94500 | C15: 1000 | D15: 5950 | E15: 10821.18 | F15: 1967.4236 | G15: 3063 | H15: 94.6467 | I15: 103496.2503
A16: MBM B 5500 | B16: 97200 | C16: 1000 | D16: 6150 | E16: 11130.18 | F16: 2023.6036 | G16: 3063 | H16: 94.6467 | I16: 106361.4303
A17: HM FILM F 5600/5400 | B17: 94950 | C17: 1000 | D17: 6300 | E17: 10833.54 | F17: 1969.6708 | G17: 3063 | H17: 94.6467 | I17: 103610.8575
A18: RAF/MFIL R5801 | B18: 97350 | C18: 1000 | D18: 5750 | E18: 11198.16 | F18: 2035.9632 | G18: 3063 | H18: 94.6467 | I18: 106991.7699
A19: RAF/MFIL HD T9 | B19: 94050 | C19: 1000 | D19: 5750 | E19: 10790.28 | F19: 1961.8056 | G19: 3063 | H19: 94.6467 | I19: 103209.7323
A20: HD FILM HDT6 / F5001 | B20: 95850 | C20: 1000 | D20: 6800 | E20: 10882.98 | F20: 1978.6596 | G20: 3063 | H20: 94.6467 | I20: 104069.2863
A21: PIPE P5200UV | B21: 98750 | C21: 1000 | D21: 6650 | E21: 11259.96 | F21: 2047.1992 | G21: 3063 | H21: 94.6467 | I21: 107564.8059
A22: IM M 5018L/M 5025L/M5818 | B22: 93900 | C22: 1000 | D22: 6200 | E22: 10716.12 | F22: 1948.3224 | G22: 3063 | H22: 94.6467 | I22: 102522.0891
A23: RAF HD T10 / HD T10S | B23: 94950 | C23: 1000 | D23: 5700 | E23: 10907.7 | F23: 1983.154 | G23: 3063 | H23: 94.6467 | I23: 104298.5007
A24: PIPE P 5300 | B24: 100200 | C24: 1000 | D24: 6700 | E24: 11433 | F24: 2078.66 | G24: 3063 | H24: 94.6467 | I24: 109169.3067
A25: PIPE P5200(P.E-63) | B25: 97250 | C25: 1000 | D25: 6650 | E25: 11074.56 | F25: 2013.4912 | G25: 3063 | H25: 94.6467 | I25: 105845.6979
A26: HD T9C | B26: 89750 | C26: 0 | D26: 2000 | E26: 10845.9 | F26: 1971.918 | G26: 3063 | H26: 94.6467 | I26: 103725.4647
A27: OG | B27: 88750 | C27: 0 | D27: 2000 | E27: =+(B27-C27-D27)*0.1236 -> 10722.3 | F27: =+(B27-C27-D27+E27)*0.02 -> 1949.446 | G27: 3063 | H27: =+G27*0.0309 -> 94.6467 | I27: =+B27-C27-D27+E27+F27+G27+H27 -> 102579.3927
A28: PP | F28: 0
A29: FILM F 110 | B29: 99800 | C29: 1000 | D29: 5500 | E29: =+(B29-C29-D29)*0.1236 -> 11531.88 | F29: 2096.6376 | G29: 3063 | H29: =+G29*0.0309 -> 94.6467 | I29: 110086.1643
A30: HPIM M 103 | B30: 99600 | C30: 1000 | D30: 6350 | E30: 11402.1 | F30: 2073.042 | G30: 3063 | H30: 94.6467 | I30: 108882.7887
A31: HPIM M 110 | B31: 98250 | C31: 1000 | D31: 5600 | E31: 11327.94 | F31: 2059.5588 | G31: 3063 | H31: 94.6467 | I31: 108195.1455
A32: TF T 103 / T 105N | B32: 100350 | C32: 1000 | D32: 5250 | E32: 11630.76 | F32: 2114.6152 | G32: 3063 | H32: 94.6467 | I32: 111003.0219
A33: RAFFIA R 103 | B33: 104150 | C33: 1000 | D33: 6400 | E33: 11958.3 | F33: 2174.166 | G33: 3063 | H33: 94.6467 | I33: 114040.1127
A34: BOPP F 103 / F 103S | B34: 100550 | C34: 1000 | D34: 5950 | E34: 11568.96 | F34: 2103.3792 | G34: 3063 | H34: 94.6467 | I34: 110429.9859
A35: PP M 108/ M106 | B35: 98150 | C35: 1000 | D35: 5900 | E35: 11278.5 | F35: 2050.57 | G35: 3063 | H35: 94.6467 | I35: 107736.7167
A36: PP F135 / E125 | B36: 100150 | C36: 1000 | D36: 5300 | E36: 11599.86 | F36: 2108.9972 | G36: 3063 | H36: 94.6467 | I36: 110716.5039
A37: PP HP OG | B37: 93250 | C37: 0 | D37: 0 | E37: 11525.7 | F37: 2095.514 | G37: 3063 | H37: 94.6467 | I37: 110028.8607
A38: PP PS | B38: 89250 | C38: 0 | D38: 0 | E38: 11031.3 | F38: 2005.626 | G38: 3063 | H38: 94.6467 | I38: 105444.5727
A39: PP WS | B39: 87250 | C39: 0 | D39: 0 | E39: 10784.1 | F39: 1960.682 | G39: 3063 | H39: 94.6467 | I39: 103152.4287
A40: PP CP/RCP | F40: 0
A41: PPCP M 311T | B41: 106100 | C41: 1000 | D41: 6750 | E41: =+(B41-C41-D41)*0.1236 -> 12156.06 | F41: 2210.1212 | G41: 3063 | H41: =+G41*0.0309 -> 94.6467 | I41: 115873.8279
A42: PPCP M 340 / M365 | B42: 103800 | C42: 1000 | D42: 6300 | E42: 11927.4 | F42: 2168.548 | G42: 3063 | H42: 94.6467 | I42: 113753.5947
A43: PP CP M 310 | B43: 104500 | C43: 1000 | D43: 6100 | E43: 12038.64 | F43: 2188.7728 | G43: 3063 | H43: 94.6467 | I43: 114785.0595
A44: PP CP M 312 | B44: 102600 | C44: 1000 | D44: 6500 | E44: 11754.36 | F44: 2137.0872 | G44: 3063 | H44: 94.6467 | I44: 112149.0939
A45: PP CP M 304 / M 325 | B45: 102550 | C45: 1000 | D45: 6500 | E45: 11748.18 | F45: 2135.9636 | G45: 3063 | H45: 94.6467 | I45: 112091.7903
A46: PP CP M 307 / M 315 | B46: 102050 | C46: 1000 | D46: 6550 | E46: 11680.2 | F46: 2123.604 | G46: 3063 | H46: 94.6467 | I46: 111461.4507
A47: PP RCP B 200 | B47: 101900 | C47: 1000 | D47: 5650 | E47: 11772.9 | F47: 2140.458 | G47: 3063 | H47: 94.6467 | I47: 112321.0047
A48: PP RCP B202S | B48: 105900 | C48: 1000 | D48: =+[1]PP!L18 -> 2900 | E48: 12607.2 | F48: 2292.144 | G48: 3063 | H48: 94.6467 | I48: 120056.9907
A49: PP RCP M212S | B49: 104100 | C49: 1000 | D49: 6600 | E49: 11927.4 | F49: 2168.548 | G49: 3063 | H49: 94.6467 | I49: 113753.5947
A50: LLDPE | F50: 0
A51: FILM 71601D | B51: 99450 | C51: 1000 | D51: 7250 | E51: =+(B51-C51-D51)*0.1236 -> 11272.32 | F51: 2049.4464 | G51: 3063 | H51: =+G51*0.0309 -> 94.6467 | I51: 107679.4131
A52: FILM 71501S,71601W | B52: 98900 | C52: 1000 | D52: 7700 | E52: 11148.72 | F52: 2026.9744 | G52: 3063 | H52: 94.6467 | I52: 106533.3411
A53: FILM 71602 S / W | B53: 98900 | C53: 1000 | D53: 7700 | E53: 11148.72 | F53: 2026.9744 | G53: 3063 | H53: 94.6467 | I53: 106533.3411
A54: ROTO 73005 T/73204 T | B54: 99750 | C54: 1000 | D54: 6100 | E54: 11451.54 | F54: 2082.0308 | G54: 3063 | H54: 94.6467 | I54: 109341.2175
A55: ROTO 73005 TU | B55: 101250 | C55: 1000 | D55: 6100 | E55: 11636.94 | F55: 2115.7388 | G55: 3063 | H55: 94.6467 | I55: 111060.3255
A56: EC 72307 E | B56: 100950 | C56: 1000 | D56: 7000 | E56: 11488.62 | F56: 2088.7724 | G56: 3063 | H56: 94.6467 | I56: 109685.0391
A57: LLT - 12 | B57: 100450 | C57: 1000 | D57: 7000 | E57: =+(B57-C57-D57)*0.1236 -> 11426.82 | F57: 2077.5364 | G57: 3063 | H57: =+G57*0.0309 -> 94.6467 | I57: 109112.0031
A58: OG | B58: 94400 | C58: 0 | D58: 2100 | E58: 11408.28 | F58: 2074.1656 | G58: 3063 | H58: 94.6467 | I58: 108940.0923
A59: POST SALES QUANTITY DISCOUNT AS APPLICABLE
A60: QTY. MT FOR HD / LL | B60: >= 10 | C60: >=15 | D60: >=30 | E60: >=60 | F60: >= 100 | G60: >= 200 | H60: >= 400
A61: HDPE/LLDPE | B61: 300/- | C61: 300/- | D61: 400/- | E61: 450/- | F61: 550/- | G61: 650/- | H61: 750/-
A62: QTY. MT FOR PP | B62: >=15 | C62: >=30 | D62: >=60 | E62: >=100 | F62: >=200 | G62: >=400
A63: PP | B63: 300/- | C63: 400/- | D63: 450/- | E63: 550/- | F63: 650/- | G63: 750/-
A64: · FOR CREDIT PURCHASE INTREST FREE CREDIT WILL BE 14 DAYS FROM THE DATE OF INVOICE. AN EPI
A65: RS. 70 / MT PER DAY FOR EX-PLANT
A66: · Trade Discount of Rs. 4000 PMT applicable on R103 - to be adjusted pre-exice basis on Ex-plant sales only.
A67: · Trade Discount of Rs. 3000 PMT applicable on R5801 - to be adjusted pre-exice basis on Ex-plant sales only.
A68: · Trade Discount of Rs. 2000 PMT applicable on B5500 - to be adjusted pre-exice basis on Ex-plant sales only.
A69: · NON PRIME GRADE RS.800/MT LESS THAN THE BASIC PRIME GRADE.
A70: · CHEQUE RETURN PENALTY RS.1000/-PER INSTRUMENT.
A71: · UNLOADING & VARAI CHARGES TO BE BORNE BY THE CUSTOMER.
A72: · “C” FORM REQUIRED IN ADVANCE.
A73: · QUANTITY DISCOUNT WOULD NOT BE APPLICABLE ON COMBINATION OF HDPE AND LLDPE GRADES.
A74: · PRICE MAY CHANGE WITHOUT ANY PRIOR NOTICE. PRICE PREVAILING AT THE TIME OF DISPATCH WILL APPLY.
A75: REGARDS
A76: HITESH SHAH - 9820106078
A77: GIRISH SHAH - 9320949656

Sheet GUJARAT (E)
A1: GANPATI PETROCHEMICALS
A2: Consigment Stockist of : HALDIA PETROCHEMICALS LTD.
A3: 152,Sanjay Bldg. No. 6,Mittal Ind.Estate,Andheri Kurla Road,Marol,Andheri(East),MUMBAI-400 059.
A4: Tel. 28509801 / 28517451 / 32460637 Telefax. 28509802 / E- MAIL ganpetro@vsnl.com
A5: HDPE / PP / LLDPE PRICES EX-HALDIA PETROCHEMICALS LTD. PLANT FOR GUJARAT(E)
A6: Daman W.H. Add :- House no. DGGP / 10-B, Survey No. 747 & 748, Village Kalaria, Nani Daman, Daman - 396210, Tel:-0260-2240086, 9377319643
A7: HDPE, LLDPE & PP PRICE W.E.F. DT. 13.06.2013
A8: GRADE | B8: BASIC | C8: LESS. | D8: LESS. | E8: ADD | F8: ADD CST | G8: CASH AMT
A9: HDPE | C9: C.D. | D9: LOC.SUB | E9: 0.1236 | F9: 0.02 | G9: PMT
A10: IM 6007L / M 5005L | B10: 95050 | C10: 1000 | D10: 5400 | E10: =+(B10-C10-D10)*0.1236 -> 10957.14 | F10: =+(B10-C10-D10+E10)*0.02 -> 1992.1428 | G10: =+B10-C10-D10+E10+F10 -> 101599.2828 | I10: TRANS.CHARGES PMT.
A11: IM( 7MFI) M 6007LU | B11: 96550 | C11: 1000 | D11: 5400 | E11: =+(B11-C11-D11)*0.1236 -> 11142.54 | F11: =+(B11-C11-D11+E11)*0.02 -> 2025.8508 | G11: =+B11-C11-D11+E11+F11 -> 103318.3908
A12: IM( 4.5 MFI ) M 5002L | B12: 94550 | C12: 1000 | D12: 5400 | E12: 10895.34 | F12: 1980.9068 | G12: 101026.2468
A13: HD BM B 6401 | B13: 94000 | C13: 1000 | D13: 5450 | E13: 10821.18 | F13: 1967.4236 | G13: 100338.6036 | H13: LOCATIONS | I13: FREIGHT | J13: ADD S.T.
A14: HD BM E 5201 | B14: 95500 | C14: 1000 | D14: 5450 | E14: 11006.58 | F14: 2001.1316 | G14: 102057.7116 | H14: **T.D. | I14: RS/MT. | J14: 0.0309
A15: HD BM E5201S | B15: 94500 | C15: 1000 | D15: 5450 | E15: 10882.98 | F15: 1978.6596 | G15: 100911.6396
A16: MBM B 5500 | B16: 97200 | C16: 1000 | D16: 5650 | E16: 11191.98 | F16: 2034.8396 | G16: 103776.8196
A17: HM FILM F 5600/5400 | B17: 94950 | C17: 1000 | D17: 5500 | E17: 10932.42 | F17: 1987.6484 | G17: 101370.0684 | H17: AHMD. - 5 | I17: 3247 | J17: =+I17*0.0309 -> 100.3323
A18: RAF/MFIL R5801 | B18: 97350 | C18: 1000 | D18: 5250 | E18: 11259.96 | F18: 2047.1992 | G18: 104407.1592 | H18: HALOL - 5 | I18: 3294 | J18: =+I18*0.0309 -> 101.7846
A19: RAF/MFIL HD T9 | B19: 94050 | C19: 1000 | D19: 5250 | E19: 10852.08 | F19: 1973.0416 | G19: 100625.1216 | H19: BARODA - 5 | I19: 3243 | J19: =+I19*0.0309 -> 100.2087
A20: HD FILM HDT6 / F5001 | B20: 95850 | C20: 1000 | D20: 6000 | E20: 10981.86 | F20: 1996.6372 | G20: 101828.4972 | H20: KALOL-M- 5 | I20: 3338 | J20: =+I20*0.0309 -> 103.1442
A21: PIPE P5200UV | B21: 98750 | C21: 1000 | D21: 6150 | E21: 11321.76 | F21: 2058.4352 | G21: 104980.1952
A22: IM M 5018L/M 5025L/M5818 | B22: 93900 | C22: 1000 | D22: 5050 | E22: 10858.26 | F22: 1974.1652 | G22: 100682.4252 | H22: VATVA-5 | I22: 3247 | J22: =+I22*0.0309 -> 100.3323
A23: RAF HD T10 / HD T10S | B23: 94950 | C23: 1000 | D23: 5200 | E23: 10969.5 | F23: 1994.39 | G23: 101713.89 | H23: BHARUCH | I23: 3027 | J23: =+I23*0.0309 -> 93.5343
A24: PIPE P 5300 | B24: 100200 | C24: 1000 | D24: 6250 | E24: 11488.62 | F24: 2088.7724 | G24: 106527.3924 | H24: ANAND | I24: 3195 | J24: =+I24*0.0309 -> 98.7255
A25: PIPE P5200(P.E-63) | B25: 97250 | C25: 1000 | D25: 6150 | E25: 11136.36 | F25: 2024.7272 | G25: 103261.0872
A26: HD T9C | B26: 89750 | C26: 0 | D26: 2000 | E26: 10845.9 | F26: 1971.918 | G26: 100567.818
A27: OG | B27: 88750 | C27: 0 | D27: 2000 | E27: 10722.3 | F27: 1949.446 | G27: 99421.746 | L27: `
A28: PP
A29: FILM F 110 | B29: 99800 | C29: 1000 | D29: 5200 | E29: =+(B29-C29-D29)*0.1236 -> 11568.96 | F29: 2103.3792 | G29: =+B29-C29-D29+E29+F29 -> 107272.3392 | H29: *T.D.=TRANSIT DAYS
A30: HPIM M 103 | B30: 99600 | C30: 1000 | D30: 6200 | E30: 11420.64 | F30: 2076.4128 | G30: 105897.0528
A31: HPIM M 110 | B31: 98250 | C31: 1000 | D31: 5550 | E31: 11334.12 | F31: 2060.6824 | G31: 105094.8024
A32: TF T 103 / T 105N | B32: 100350 | C32: 1000 | D32: 4550 | E32: 11717.28 | F32: 2130.3456 | G32: 108647.6256
A33: RAFFIA R 103 | B33: 104150 | C33: 1000 | D33: 6400 | E33: 11958.3 | F33: 2174.166 | G33: 110882.466
A34: BOPP F 103 / F 103S | B34: 100550 | C34: 1000 | D34: 4650 | E34: 11729.64 | F34: 2132.5928 | G34: 108762.2328
A35: PP M 108/ M106 | B35: 98150 | C35: 1000 | D35: 5900 | E35: 11278.5 | F35: 2050.57 | G35: 104579.07
A36: PP F135 / E125 | B36: 100150 | C36: 1000 | D36: 4750 | E36: 11667.84 | F36: 2121.3568 | G36: 108189.1968
A37: PP HP OG | B37: 93250 | C37: 0 | D37: 0 | E37: 11525.7 | F37: 2095.514 | G37: 106871.214
A38: PP PS | B38: 89250 | C38: 0 | D38: 0 | E38: 11031.3 | F38: 2005.626 | G38: 102286.926
A39: PP WS | B39: 87250 | C39: 0 | D39: 0 | E39: 10784.1 | F39: 1960.682 | G39: 99994.782
A40: PP CP/RCP | E40: =(B40-C40-D40)*16% -> 0 | G40: =(B40-C40-D40)*16%+(B40-C40-D40) -> 0
A41: PPCP M 311T | B41: 106100 | C41: 1000 | D41: 5500 | E41: =+(B41-C41-D41)*0.1236 -> 12310.56 | F41: 2238.2112 | G41: =+B41-C41-D41+E41+F41 -> 114148.7712
A42: PPCP M 340 / M365 | B42: 103800 | C42: 1000 | D42: 5100 | E42: 12075.72 | F42: 2195.5144 | G42: 111971.2344
A43: PP CP M 310 | B43: 104500 | C43: 1000 | D43: =+[1]PP!P15 -> 5200 | E43: 12149.88 | F43: 2208.9976 | G43: 112658.8776
A44: PP CP M 312 | B44: 102600 | C44: 1000 | D44: 5000 | E44: 11939.76 | F44: 2170.7952 | G44: 110710.5552
A45: PP CP M 304 / M 325 | B45: 102550 | C45: 1000 | D45: 5200 | E45: 11908.86 | F45: 2165.1772 | G45: 110424.0372
A46: PP CP M 307 / M 315 | B46: 102050 | C46: 1000 | D46: 5250 | E46: 11840.88 | F46: 2152.8176 | G46: 109793.6976
A47: PP RCP B 200 | B47: 101900 | C47: 1000 | D47: 5200 | E47: 11828.52 | F47: 2150.5704 | G47: 109679.0904
A48: PP RCP B202S | B48: 105900 | C48: 1000 | D48: =+[1]PP!L15 -> 2200 | E48: 12693.72 | F48: 2307.8744 | G48: 117701.5944
A49: PP RCP M212S | B49: 104100 | C49: 1000 | D49: 5300 | E49: 12088.08 | F49: 2197.7616 | G49: 112085.8416
A50: LLDPE
A51: FILM 71601D | B51: 99450 | C51: 1000 | D51: 6550 | E51: =+(B51-C51-D51)*0.1236 -> 11358.84 | F51: 2065.1768 | G51: =+B51-C51-D51+E51+F51 -> 105324.0168
A52: FILM 71501S,71601W | B52: 98900 | C52: 1000 | D52: 7000 | E52: 11235.24 | F52: 2042.7048 | G52: 104177.9448
A53: FILM 71602 S / W | B53: 98900 | C53: 1000 | D53: 7000 | E53: 11235.24 | F53: 2042.7048 | G53: 104177.9448
A54: ROTO 73005 T/73204 T | B54: 99750 | C54: 1000 | D54: 5550 | E54: 11519.52 | F54: 2094.3904 | G54: 106813.9104
A55: ROTO 73005 TU | B55: 101250 | C55: 1000 | D55: 5550 | E55: 11704.92 | F55: 2128.0984 | G55: 108533.0184
A56: EC 72307 E | B56: 100950 | C56: 1000 | D56: 6450 | E56: 11556.6 | F56: 2101.132 | G56: 107157.732
A57: LLT - 12 | B57: 100450 | C57: 1000 | D57: 6450 | E57: =+(B57-C57-D57)*0.1236 -> 11494.8 | F57: 2089.896 | G57: 106584.696
A58: OG | B58: 94400 | C58: 0 | D58: 2100 | E58: 11408.28 | F58: 2074.1656 | G58: 105782.4456
A59: POST SALES QUANTITY DISCOUNT AS APPLICABLE
A60: QTY. MT FOR HD / LL | B60: >= 10 | C60: >=15 | D60: >=30 | E60: >=60 | F60: >= 100 | G60: >= 200 | H60: >= 400
A61: HDPE/LLDPE | B61: 300/- | C61: 300/- | D61: 400/- | E61: 450/- | F61: 550/- | G61: 650/- | H61: 750/-
A62: QTY. MT FOR PP | B62: >=15 | C62: >=30 | D62: >=60 | E62: >=100 | F62: >=200 | G62: >=400
A63: PP | B63: 300/- | C63: 400/- | D63: 450/- | E63: 550/- | F63: 650/- | G63: 750/-
A64: · FOR CREDIT PURCHASE INTREST FREE CREDIT WILL BE 14 DAYS FROM THE DATE OF INVOICE. AN EPI
A65: RS. 70 / MT PER DAY FOR EX-PLANT
A66: · Trade Discount of Rs. 4000 PMT applicable on R103 - to be adjusted pre-exice basis on Ex-plant sales only.
A67: · Trade Discount of Rs. 3000 PMT applicable on R5801 - to be adjusted pre-exice basis on Ex-plant sales only.
A68: · Trade Discount of Rs. 2000 PMT applicable on B5500 - to be adjusted pre-exice basis on Ex-plant sales only.
A69: · NON PRIME GRADE RS.800/MT LESS THAN THE BASIC PRIME GRADE.
A70: · CHEQUE RETURN PENALTY RS.1000/-PER INSTRUMENT.
A71: · UNLOADING & VARAI CHARGES TO BE BORNE BY THE CUSTOMER.
A72: · “C” FORM REQUIRED IN ADVANCE.
A73: · QUANTITY DISCOUNT WOULD NOT BE APPLICABLE ON COMBINATION OF HDPE AND LLDPE GRADES.
A74: · PRICE MAY CHANGE WITHOUT ANY PRIOR NOTICE. PRICE PREVAILING AT THE TIME OF DISPATCH WILL APPLY.
A75: REGARDS
A76: HITESH SHAH - 9820106078
A77: GIRISH SHAH - 9320949656

Sheet GUJARAT (S)
A1: GANPATI PETROCHEMICALS
A2: Consigment Stockist of : HALDIA PETROCHEMICALS LTD.
A3: 152,Sanjay Bldg. No. 6,Mittal Ind.Estate,Andheri Kurla Road,Marol,Andheri(East),MUMBAI-400 059.
A4: Tel. 28509801 / 28517451 / 32460637 Telefax. 28509802 / E- MAIL ganpetro@vsnl.com
A5: HDPE / PP / LLDPE PRICES EX-HALDIA PETROCHEMICALS LTD. PLANT FOR GUJARAT(SOUTH)
A6: Daman W.H. Add :- House no. DGGP / 10-B, Survey No. 747 & 748, Village Kalaria, Nani Daman, Daman - 396210, Tel:-0260-2240086, 9377319643
A7: HDPE, LLDPE & PP PRICE W.E.F. DT. 13.06.2013
A8: GRADE | B8: BASIC | C8: LESS. | D8: LESS. | E8: ADD | F8: ADD CST | G8: CASH AMT
A9: HDPE | C9: C.D. | D9: LOC.SUB | E9: 0.1236 | F9: 0.02 | G9: PMT
A10: IM 6007L / M 5005L | B10: 95050 | C10: 1000 | D10: 5750 | E10: =+(B10-C10-D10)*0.1236 -> 10913.88 | F10: =+(B10-C10-D10+E10)*0.02 -> 1984.2776 | G10: =+B10-C10-D10+E10+F10 -> 101198.1576 | I10: TRANS.CHARGES PMT.
A11: IM( 7MFI) M 6007LU | B11: 96550 | C11: 1000 | D11: 5750 | E11: =+(B11-C11-D11)*0.1236 -> 11099.28 | F11: =+(B11-C11-D11+E11)*0.02 -> 2017.9856 | G11: =+B11-C11-D11+E11+F11 -> 102917.2656
A12: IM( 4.5 MFI ) M 5002L | B12: 94550 | C12: 1000 | D12: 5750 | E12: 10852.08 | F12: 1973.0416 | G12: 100625.1216
A13: HD BM B 6401 | B13: 94000 | C13: 1000 | D13: 6000 | E13: 10753.2 | F13: 1955.064 | G13: 99708.264 | H13: LOCATIONS | I13: FREIGHT | J13: ADD S.T.
A14: HD BM E 5201 | B14: 95500 | C14: 1000 | D14: 6000 | E14: 10938.6 | F14: 1988.772 | G14: 101427.372 | H14: **T.D. | I14: RS/MT. | J14: 0.0309
A15: HD BM E5201S | B15: 94500 | C15: 1000 | D15: 6000 | E15: 10815 | F15: 1966.3 | G15: 100281.3
A16: MBM B 5500 | B16: 97200 | C16: 1000 | D16: 6150 | E16: 11130.18 | F16: 2023.6036 | G16: 103203.7836
A17: HM FILM F 5600/5400 | B17: 94950 | C17: 1000 | D17: 5850 | E17: 10889.16 | F17: 1979.7832 | G17: 100968.9432 | H17: VAPI - 5 | I17: 3063 | J17: =+I17*0.0309 -> 94.6467
A18: RAF/MFIL R5801 | B18: 97350 | C18: 1000 | D18: 5850 | E18: 11185.8 | F18: 2033.716 | G18: 103719.516 | H18: SURAT - 5 | I18: 3039 | J18: =+I18*0.0309 -> 93.9051
A19: RAF/MFIL HD T9 | B19: 94050 | C19: 1000 | D19: 5850 | E19: 10777.92 | F19: 1959.5584 | G19: 99937.4784 | H19: UMERGAON - 5 | I19: 3043 | J19: =+I19*0.0309 -> 94.0287
A20: HD FILM HDT6 / F5001 | B20: 95850 | C20: 1000 | D20: 6550 | E20: 10913.88 | F20: 1984.2776 | G20: 101198.1576 | H20: VALSAD - 5 | I20: 3062 | J20: =+I20*0.0309 -> 94.6158
A21: PIPE P5200UV | B21: 98750 | C21: 1000 | D21: 6500 | E21: 11278.5 | F21: 2050.57 | G21: 104579.07
A22: IM M 5018L/M 5025L/M5818 | B22: 93900 | C22: 1000 | D22: 5450 | E22: 10808.82 | F22: 1965.1764 | G22: 100223.9964
A23: RAF HD T10 / HD T10S | B23: 94950 | C23: 1000 | D23: 5550 | E23: 10926.24 | F23: 1986.5248 | G23: 101312.7648
A24: PIPE P 5300 | B24: 100200 | C24: 1000 | D24: 6750 | E24: 11426.82 | F24: 2077.5364 | G24: 105954.3564
A25: PIPE P5200(P.E-63) | B25: 97250 | C25: 1000 | D25: 6500 | E25: 11093.1 | F25: 2016.862 | G25: 102859.962
A26: HD T9C | B26: 89750 | C26: 0 | D26: 2000 | E26: 10845.9 | F26: 1971.918 | G26: 100567.818
A27: OG | B27: 88750 | C27: 0 | D27: 2000 | E27: 10722.3 | F27: 1949.446 | G27: 99421.746
A28: PP
A29: FILM F 110 | B29: 99800 | C29: 1000 | D29: 5200 | E29: =+(B29-C29-D29)*0.1236 -> 11568.96 | F29: 2103.3792 | G29: =+B29-C29-D29+E29+F29 -> 107272.3392 | H29: *T.D.=TRANSIT DAYS
A30: HPIM M 103 | B30: 99600 | C30: 1000 | D30: 6200 | E30: 11420.64 | F30: 2076.4128 | G30: 105897.0528
A31: HPIM M 110 | B31: 98250 | C31: 1000 | D31: 5550 | E31: 11334.12 | F31: 2060.6824 | G31: 105094.8024
A32: TF T 103 / T 105N | B32: 100350 | C32: 1000 | D32: 4550 | E32: 11717.28 | F32: 2130.3456 | G32: 108647.6256
A33: RAFFIA R 103 | B33: 104150 | C33: 1000 | D33: 6400 | E33: 11958.3 | F33: 2174.166 | G33: 110882.466
A34: BOPP F 103 / F 103S | B34: 100550 | C34: 1000 | D34: 4650 | E34: 11729.64 | F34: 2132.5928 | G34: 108762.2328
A35: PP M 108/ M106 | B35: 98150 | C35: 1000 | D35: 5900 | E35: 11278.5 | F35: 2050.57 | G35: 104579.07
A36: PP F135 / E125 | B36: 100150 | C36: 1000 | D36: 4750 | E36: 11667.84 | F36: 2121.3568 | G36: 108189.1968
A37: PP HP OG | B37: 93250 | C37: 0 | D37: 0 | E37: 11525.7 | F37: 2095.514 | G37: 106871.214
A38: PP PS | B38: 89250 | C38: 0 | D38: 0 | E38: 11031.3 | F38: 2005.626 | G38: 102286.926
A39: PP WS | B39: 87250 | C39: 0 | D39: 0 | E39: 10784.1 | F39: 1960.682 | G39: 99994.782
A40: PP CP/RCP | E40: =(B40-C40-D40)*16% -> 0 | G40: =(B40-C40-D40)*16%+(B40-C40-D40) -> 0
A41: PPCP M 311T | B41: 106100 | C41: 1000 | D41: 5500 | E41: =+(B41-C41-D41)*0.1236 -> 12310.56 | F41: 2238.2112 | G41: =+B41-C41-D41+E41+F41 -> 114148.7712
A42: PPCP M 340 / M365 | B42: 103800 | C42: 1000 | D42: 5100 | E42: 12075.72 | F42: 2195.5144 | G42: 111971.2344
A43: PP CP M 310 | B43: 104500 | C43: 1000 | D43: =+[1]PP!P15 -> 5200 | E43: 12149.88 | F43: 2208.9976 | G43: 112658.8776
A44: PP CP M 312 | B44: 102600 | C44: 1000 | D44: 5000 | E44: 11939.76 | F44: 2170.7952 | G44: 110710.5552
A45: PP CP M 304 / M 325 | B45: 102550 | C45: 1000 | D45: 5200 | E45: 11908.86 | F45: 2165.1772 | G45: 110424.0372
A46: PP CP M 307 / M 315 | B46: 102050 | C46: 1000 | D46: 5250 | E46: 11840.88 | F46: 2152.8176 | G46: 109793.6976
A47: PP RCP B 200 | B47: 101900 | C47: 1000 | D47: 5200 | E47: 11828.52 | F47: 2150.5704 | G47: 109679.0904
A48: PP RCP B202S | B48: 105900 | C48: 1000 | D48: =+[1]PP!L15 -> 2200 | E48: 12693.72 | F48: 2307.8744 | G48: 117701.5944
A49: PP RCP M212S | B49: 104100 | C49: 1000 | D49: 5300 | E49: 12088.08 | F49: 2197.7616 | G49: 112085.8416
A50: LLDPE
A51: FILM 71601D | B51: 99450 | C51: 1000 | D51: 7000 | E51: =+(B51-C51-D51)*0.1236 -> 11303.22 | F51: 2055.0644 | G51: =+B51-C51-D51+E51+F51 -> 104808.2844
A52: FILM 71501S,71601W | B52: 98900 | C52: 1000 | D52: 7450 | E52: 11179.62 | F52: 2032.5924 | G52: 103662.2124
A53: FILM 71602 S / W | B53: 98900 | C53: 1000 | D53: 7450 | E53: 11179.62 | F53: 2032.5924 | G53: 103662.2124
A54: ROTO 73005 T/73204 T | B54: 99750 | C54: 1000 | D54: 5900 | E54: 11476.26 | F54: 2086.5252 | G54: 106412.7852
A55: ROTO 73005 TU | B55: 101250 | C55: 1000 | D55: 5900 | E55: 11661.66 | F55: 2120.2332 | G55: 108131.8932
A56: EC 72307 E | B56: 100950 | C56: 1000 | D56: 6800 | E56: 11513.34 | F56: 2093.2668 | G56: 106756.6068
A57: LLT - 12 | B57: 100450 | C57: 1000 | D57: 6800 | E57: =+(B57-C57-D57)*0.1236 -> 11451.54 | F57: 2082.0308 | G57: 106183.5708
A58: OG | B58: 94400 | C58: 0 | D58: 2100 | E58: 11408.28 | F58: 2074.1656 | G58: 105782.4456
A59: POST SALES QUANTITY DISCOUNT AS APPLICABLE
A60: QTY. MT FOR HD / LL | B60: >= 10 | C60: >=15 | D60: >=30 | E60: >=60 | F60: >= 100 | G60: >= 200 | H60: >= 400
A61: HDPE/LLDPE | B61: 300/- | C61: 300/- | D61: 400/- | E61: 450/- | F61: 550/- | G61: 650/- | H61: 750/-
A62: QTY. MT FOR PP | B62: >=15 | C62: >=30 | D62: >=60 | E62: >=100 | F62: >=200 | G62: >=400
A63: PP | B63: 300/- | C63: 400/- | D63: 450/- | E63: 550/- | F63: 650/- | G63: 750/-
A64: · FOR CREDIT PURCHASE INTREST FREE CREDIT WILL BE 14 DAYS FROM THE DATE OF INVOICE. AN EPI
A65: RS. 70 / MT PER DAY FOR EX-PLANT
A66: · Trade Discount of Rs. 4000 PMT applicable on R103 - to be adjusted pre-exice basis on Ex-plant sales only.
A67: · Trade Discount of Rs. 3000 PMT applicable on R5801 - to be adjusted pre-exice basis on Ex-plant sales only.
A68: · Trade Discount of Rs. 2000 PMT applicable on B5500 - to be adjusted pre-exice basis on Ex-plant sales only.
A69: · NON PRIME GRADE RS.800/MT LESS THAN THE BASIC PRIME GRADE.
A70: · CHEQUE RETURN PENALTY RS.1000/-PER INSTRUMENT.
A71: · UNLOADING & VARAI CHARGES TO BE BORNE BY THE CUSTOMER.
A72: · “C” FORM REQUIRED IN ADVANCE.
A73: · QUANTITY DISCOUNT WOULD NOT BE APPLICABLE ON COMBINATION OF HDPE AND LLDPE GRADES.
A74: · PRICE MAY CHANGE WITHOUT ANY PRIOR NOTICE. PRICE PREVAILING AT THE TIME OF DISPATCH WILL APPLY.
A75: REGARDS
A76: HITESH SHAH - 9820106078
A77: GIRISH SHAH - 9320949656

Sheet GUJARAT (W)
A1: GANPATI PETROCHEMICALS
A2: Consigment Stockist of : HALDIA PETROCHEMICALS LTD.
A3: 152,Sanjay Bldg. No. 6,Mittal Ind.Estate,Andheri Kurla Road,Marol,Andheri(East),MUMBAI-400 059.
A4: Tel. 28509801 / 28517451 / 32460637 Telefax. 28509802 / E- MAIL ganpetro@vsnl.com
A5: HDPE / PP / LLDPE PRICES EX-HALDIA PETROCHEMICALS LTD. PLANT FOR GUJARAT(WEST)
A6: Daman W.H. Add :- House no. DGGP / 10-B, Survey No. 747 & 748, Village Kalaria, Nani Daman, Daman - 396210, Tel:-0260-2240086, 9377319643
A7: HDPE, LLDPE & PP PRICE W.E.F. DT. 13.06.2013
A8: GRADE | B8: BASIC | C8: LESS. | D8: LESS. | E8: ADD | F8: ADD CST | G8: CASH AMT
A9: HDPE | C9: C.D. | D9: LOC.SUB | E9: 0.1236 | F9: 0.02 | G9: PMT
A10: IM 6007L / M 5005L | B10: 95050 | C10: 1000 | D10: 5700 | E10: =+(B10-C10-D10)*0.1236 -> 10920.06 | F10: =+(B10-C10-D10+E10)*0.02 -> 1985.4012 | G10: =+B10-C10-D10+E10+F10 -> 101255.4612 | I10: TRANS.CHARGES PMT.
A11: IM( 7MFI) M 6007LU | B11: 96550 | C11: 1000 | D11: 5700 | E11: =+(B11-C11-D11)*0.1236 -> 11105.46 | F11: =+(B11-C11-D11+E11)*0.02 -> 2019.1092 | G11: =+B11-C11-D11+E11+F11 -> 102974.5692
A12: IM( 4.5 MFI ) M 5002L | B12: 94550 | C12: 1000 | D12: 5700 | E12: 10858.26 | F12: 1974.1652 | G12: 100682.4252
A13: HD BM B 6401 | B13: 94000 | C13: 1000 | D13: 5600 | E13: 10802.64 | F13: 1964.0528 | G13: 100166.6928 | H13: LOCATIONS | I13: FREIGHT | J13: ADD S.T.
A14: HD BM E 5201 | B14: 95500 | C14: 1000 | D14: 5600 | E14: 10988.04 | F14: 1997.7608 | G14: 101885.8008 | H14: **T.D. | I14: RS/MT. | J14: 0.0309
A15: HD BM E5201S | B15: 94500 | C15: 1000 | D15: 5600 | E15: 10864.44 | F15: 1975.2888 | G15: 100739.7288
A16: MBM B 5500 | B16: 97200 | C16: 1000 | D16: 5950 | E16: 11154.9 | F16: 2028.098 | G16: 103432.998
A17: HM FILM F 5600/5400 | B17: 94950 | C17: 1000 | D17: 5550 | E17: 10926.24 | F17: 1986.5248 | G17: 101312.7648 | H17: RAJKOT - 6 | I17: 3694 | J17: =+I17*0.0309 -> 114.1446
A18: RAF/MFIL R5801 | B18: 97350 | C18: 1000 | D18: 5500 | E18: 11229.06 | F18: 2041.5812 | G18: 104120.6412 | H18: BHAVNAGAR-6 | I18: 3794 | J18: =+I18*0.0309 -> 117.2346
A19: RAF/MFIL HD T9 | B19: 94050 | C19: 1000 | D19: 5500 | E19: 10821.18 | F19: 1967.4236 | G19: 100338.6036
A20: HD FILM HDT6 / F5001 | B20: 95850 | C20: 1000 | D20: 6100 | E20: 10969.5 | F20: 1994.39 | G20: 101713.89
A21: PIPE P5200UV | B21: 98750 | C21: 1000 | D21: 6450 | E21: 11284.68 | F21: 2051.6936 | G21: 104636.3736
A22: IM M 5018L/M 5025L/M5818 | B22: 93900 | C22: 1000 | D22: 5300 | E22: 10827.36 | F22: 1968.5472 | G22: 100395.9072
A23: RAF HD T10 / HD T10S | B23: 94950 | C23: 1000 | D23: 5400 | E23: 10944.78 | F23: 1989.8956 | G23: 101484.6756
A24: PIPE P 5300 | B24: 100200 | C24: 1000 | D24: 6500 | E24: 11457.72 | F24: 2083.1544 | G24: 106240.8744
A25: PIPE P5200(P.E-63) | B25: 97250 | C25: 1000 | D25: 6450 | E25: 11099.28 | F25: 2017.9856 | G25: 102917.2656
A26: HD T9C | B26: 89750 | C26: 0 | D26: 2000 | E26: 10845.9 | F26: 1971.918 | G26: 100567.818
A27: OG | B27: 88750 | C27: 0 | D27: 2000 | E27: 10722.3 | F27: 1949.446 | G27: 99421.746
A28: PP
A29: FILM F 110 | B29: 99800 | C29: 1000 | D29: 5200 | E29: =+(B29-C29-D29)*0.1236 -> 11568.96 | F29: =+(B29-C29-D29+E29)*0.02 -> 2103.3792 | G29: =+B29-C29-D29+E29+F29 -> 107272.3392 | H29: *T.D.=TRANSIT DAYS
A30: HPIM M 103 | B30: 99600 | C30: 1000 | D30: 6300 | E30: 11408.28 | F30: 2074.1656 | G30: 105782.4456
A31: HPIM M 110 | B31: 98250 | C31: 1000 | D31: 5550 | E31: 11334.12 | F31: 2060.6824 | G31: 105094.8024
A32: TF T 103 / T 105N | B32: 100350 | C32: 1000 | D32: 5500 | E32: 11599.86 | F32: 2108.9972 | G32: 107558.8572
A33: RAFFIA R 103 | B33: 104150 | C33: 1000 | D33: 6400 | E33: 11958.3 | F33: 2174.166 | G33: 110882.466
A34: BOPP F 103 / F 103S | B34: 100550 | C34: 1000 | D34: 4650 | E34: 11729.64 | F34: 2132.5928 | G34: 108762.2328
A35: PP M 108/ M106 | B35: 98150 | C35: 1000 | D35: 5900 | E35: 11278.5 | F35: 2050.57 | G35: 104579.07
A36: PP F135 / E125 | B36: 100150 | C36: 1000 | D36: 6000 | E36: 11513.34 | F36: 2093.2668 | G36: 106756.6068
A37: PP HP OG | B37: 93250 | C37: 0 | D37: 0 | E37: 11525.7 | F37: 2095.514 | G37: 106871.214
A38: PP PS | B38: 89250 | C38: 0 | D38: 0 | E38: 11031.3 | F38: 2005.626 | G38: 102286.926
A39: PP WS | B39: 87250 | C39: 0 | D39: 0 | E39: 10784.1 | F39: 1960.682 | G39: 99994.782
A40: PP CP/RCP | E40: =(B40-C40-D40)*16% -> 0 | G40: =(B40-C40-D40)*16%+(B40-C40-D40) -> 0
A41: PPCP M 311T | B41: 106100 | C41: 1000 | D41: 6450 | E41: =+(B41-C41-D41)*0.1236 -> 12193.14 | F41: =+(B41-C41-D41+E41)*0.02 -> 2216.8628 | G41: =+B41-C41-D41+E41+F41 -> 113060.0028
A42: PPCP M 340 / M365 | B42: 103800 | C42: 1000 | D42: 6050 | E42: 11958.3 | F42: 2174.166 | G42: 110882.466
A43: PP CP M 310 | B43: 104500 | C43: 1000 | D43: =+[1]PP!P16 -> 6150 | E43: 12032.46 | F43: 2187.6492 | G43: 111570.1092
A44: PP CP M 312 | B44: 102600 | C44: 1000 | D44: 5950 | E44: 11822.34 | F44: 2149.4468 | G44: 109621.7868
A45: PP CP M 304 / M 325 | B45: 102550 | C45: 1000 | D45: 6150 | E45: 11791.44 | F45: 2143.8288 | G45: 109335.2688
A46: PP CP M 307 / M 315 | B46: 102050 | C46: 1000 | D46: 6200 | E46: 11723.46 | F46: 2131.4692 | G46: 108704.9292
A47: PP RCP B 200 | B47: 101900 | C47: 1000 | D47: 7000 | E47: 11606.04 | F47: 2110.1208 | G47: 107616.1608
A48: PP RCP B202S | B48: 105900 | C48: 1000 | D48: =+[1]PP!L16 -> 2050 | E48: 12712.26 | F48: 2311.2452 | G48: 117873.5052
A49: PP RCP M212S | B49: 104100 | C49: 1000 | D49: =+[1]PP!K16 -> 6000 | E49: 12001.56 | F49: 2182.0312 | G49: 111283.5912
A50: LLDPE
A51: FILM 71601D | B51: 99450 | C51: 1000 | D51: 6850 | E51: =+(B51-C51-D51)*0.1236 -> 11321.76 | F51: =+(B51-C51-D51+E51)*0.02 -> 2058.4352 | G51: =+B51-C51-D51+E51+F51 -> 104980.1952
A52: FILM 71501S,71601W | B52: 98900 | C52: 1000 | D52: 7300 | E52: 11198.16 | F52: 2035.9632 | G52: 103834.1232
A53: FILM 71602 S / W | B53: 98900 | C53: 1000 | D53: 7300 | E53: 11198.16 | F53: 2035.9632 | G53: 103834.1232
A54: ROTO 73005 T/73204 T | B54: 99750 | C54: 1000 | D54: 5900 | E54: 11476.26 | F54: 2086.5252 | G54: 106412.7852
A55: ROTO 73005 TU | B55: 101250 | C55: 1000 | D55: 5900 | E55: 11661.66 | F55: 2120.2332 | G55: 108131.8932
A56: EC 72307 E | B56: 100950 | C56: 1000 | D56: 6800 | E56: 11513.34 | F56: 2093.2668 | G56: 106756.6068
A57: LLT - 12 | B57: 100450 | C57: 1000 | D57: 6800 | E57: =+(B57-C57-D57)*0.1236 -> 11451.54 | F57: 2082.0308 | G57: 106183.5708
A58: OG | B58: 94400 | C58: 0 | D58: 2100 | E58: 11408.28 | F58: 2074.1656 | G58: 105782.4456
A59: POST SALES QUANTITY DISCOUNT AS APPLICABLE
A60: QTY. MT FOR HD / LL | B60: >= 10 | C60: >=15 | D60: >=30 | E60: >=60 | F60: >= 100 | G60: >= 200 | H60: >= 400
A61: HDPE/LLDPE | B61: 300/- | C61: 300/- | D61: 400/- | E61: 450/- | F61: 550/- | G61: 650/- | H61: 750/-
A62: QTY. MT FOR PP | B62: >=15 | C62: >=30 | D62: >=60 | E62: >=100 | F62: >=200 | G62: >=400
A63: PP | B63: 300/- | C63: 400/- | D63: 450/- | E63: 550/- | F63: 650/- | G63: 750/-
A64: · FOR CREDIT PURCHASE INTREST FREE CREDIT WILL BE 14 DAYS FROM THE DATE OF INVOICE. AN EPI
A65: RS. 70 / MT PER DAY FOR EX-PLANT
A66: · Trade Discount of Rs. 4000 PMT applicable on R103 - to be adjusted pre-exice basis on Ex-plant sales only.
A67: · Trade Discount of Rs. 3000 PMT applicable on R5801 - to be adjusted pre-exice basis on Ex-plant sales only.
A68: · Trade Discount of Rs. 2000 PMT applicable on B5500 - to be adjusted pre-exice basis on Ex-plant sales only.
A69: · NON PRIME GRADE RS.800/MT LESS THAN THE BASIC PRIME GRADE.
A70: · CHEQUE RETURN PENALTY RS.1000/-PER INSTRUMENT.
A71: · UNLOADING & VARAI CHARGES TO BE BORNE BY THE CUSTOMER.
A72: · “C” FORM REQUIRED IN ADVANCE.
A73: · QUANTITY DISCOUNT WOULD NOT BE APPLICABLE ON COMBINATION OF HDPE AND LLDPE GRADES.
A74: · PRICE MAY CHANGE WITHOUT ANY PRIOR NOTICE. PRICE PREVAILING AT THE TIME OF DISPATCH WILL APPLY.
A75: REGARDS
A76: HITESH SHAH - 9820106078
A77: GIRISH SHAH - 9320949656

Sheet BHIWANDI
A1: GANPATI PETROCHEMICALS
A2: Consigment Stockist of : HALDIA PETROCHEMICALS LTD.
A3: 152,Sanjay Bldg. No. 6,Mittal Ind.Estate,Andheri Kurla Road,Marol,Andheri(East),MUMBAI-400 059.
A4: Tel. 28509801 / 28517451 / 32460637 Telefax. 28509802 / E- MAIL ganpetro@vsnl.com
A5: HDPE / PP / LLDPE PRICES EX-HALDIA PETROCHEMICALS LTD. PLANT FOR BHIWANDI
A6: Bhivandi W.H. Add :- Godown No. 20,Thakkar Compound,Valgaon,Anjur Rd,Bhivandi,Dist. Thane. TEL:- 09324038864
A7: HDPE, LLDPE & PP PRICE W.E.F. DT. 13.06.2013
A8: GRADE | B8: BASIC | C8: LESS. | D8: LESS. | E8: ADD E.D | F8: ADD CST | G8: ADD | H8: ADD S.T. | I8: CASH AMT
A9: HDPE | C9: C.D. | D9: LOC.SUB | E9: 0.1236 | F9: 0.02 | G9: TRANSP | H9: 0.0309 | I9: PMT
A10: IM 6007L / M 5005L | B10: 95050 | C10: 1000 | D10: 6150 | E10: =+(B10-C10-D10)*0.1236 -> 10864.44 | F10: =+(B10-C10-D10+E10)*0.02 -> 1975.2888 | G10: 3035 | H10: =+G10*0.0309 -> 93.7815 | I10: =+B10-C10-D10+E10+F10+G10+H10 -> 103868.5103
A11: IM( 7MFI) M 6007LU | B11: 96550 | C11: 1000 | D11: 6150 | E11: =+(B11-C11-D11)*0.1236 -> 11049.84 | F11: 2008.9968 | G11: 3035 | H11: 93.7815 | I11: =+B11-C11-D11+E11+F11+G11+H11 -> 105587.6183
A12: IM( 4.5 MFI ) M 5002L | B12: 94550 | C12: 1000 | D12: 6150 | E12: 10802.64 | F12: 1964.0528 | G12: 3035 | H12: 93.7815 | I12: =+B12-C12-D12+E12+F12+G12+H12 -> 103295.4743
A13: HD BM B 6401 | B13: 94000 | C13: 1000 | D13: 6150 | E13: 10734.66 | F13: 1951.6932 | G13: 3035 | H13: 93.7815 | I13: 102665.1347
A14: HD BM E 5201 | B14: 95500 | C14: 1000 | D14: 6150 | E14: 10920.06 | F14: 1985.4012 | G14: 3035 | H14: 93.7815 | I14: 104384.2427
A15: HD BM E5201S | B15: 94500 | C15: 1000 | D15: 6150 | E15: 10796.46 | F15: 1962.9292 | G15: 3035 | H15: 93.7815 | I15: 103238.1707
A16: MBM B 5500 | B16: 97200 | C16: 1000 | D16: 6350 | E16: 11105.46 | F16: 2019.1092 | G16: 3035 | H16: 93.7815 | I16: 106103.3507
A17: HM FILM F 5600/5400 | B17: 94950 | C17: 1000 | D17: 5850 | E17: 10889.16 | F17: 1979.7832 | G17: 3035 | H17: 93.7815 | I17: 104097.7247
A18: RAF/MFIL R5801 | B18: 97350 | C18: 1000 | D18: 6000 | E18: 11167.26 | F18: 2030.3452 | G18: 3035 | H18: 93.7815 | I18: 106676.3867
A19: RAF/MFIL HD T9 | B19: 94050 | C19: 1000 | D19: 6000 | E19: 10759.38 | F19: 1956.1876 | G19: 3035 | H19: 93.7815 | I19: 102894.3491
A20: HD FILM HDT6 / F5001 | B20: 95850 | C20: 1000 | D20: 6600 | E20: 10907.7 | F20: 1983.154 | G20: 3035 | H20: 93.7815 | I20: 104269.6355
A21: PIPE P5200UV | B21: 98750 | C21: 1000 | D21: 6850 | E21: 11235.24 | F21: 2042.7048 | G21: 3035 | H21: 93.7815 | I21: 107306.7263
A22: IM M 5018L/M 5025L/M5818 | B22: 93900 | C22: 1000 | D22: 6000 | E22: 10740.84 | F22: 1952.8168 | G22: 3035 | H22: 93.7815 | I22: 102722.4383
A23: RAF HD T10 / HD T10S | B23: 94950 | C23: 1000 | D23: 6150 | E23: 10852.08 | F23: 1973.0416 | G23: 3035 | H23: 93.7815 | I23: 103753.9031
A24: PIPE P 5300 | B24: 100200 | C24: 1000 | D24: 6950 | E24: 11402.1 | F24: 2073.042 | G24: 3035 | H24: 93.7815 | I24: 108853.9235
A25: PIPE P5200(P.E-63) | B25: 97250 | C25: 1000 | D25: 6850 | E25: 11049.84 | F25: 2008.9968 | G25: 3035 | H25: 93.7815 | I25: 105587.6183
A26: HD T9C | B26: 89750 | C26: 0 | D26: 2000 | E26: 10845.9 | F26: 1971.918 | G26: 3035 | H26: 93.7815 | I26: 103696.5995
A27: OG | B27: 88750 | C27: 0 | D27: 2000 | E27: 10722.3 | F27: 1949.446 | G27: 3035 | H27: 93.7815 | I27: 102550.5275
A28: PP
A29: FILM F 110 | B29: 99800 | C29: 1000 | D29: 5800 | E29: =+(B29-C29-D29)*0.1236 -> 11494.8 | F29: =+(B29-C29-D29+E29)*0.02 -> 2089.896 | G29: 3035 | H29: =+G29*0.0309 -> 93.7815 | I29: =+B29-C29-D29+E29+F29+G29+H29 -> 109713.4775
A30: HPIM M 103 | B30: 99600 | C30: 1000 | D30: 6600 | E30: 11371.2 | F30: 2067.424 | G30: 3035 | H30: 93.7815 | I30: 108567.4055
A31: HPIM M 110 | B31: 98250 | C31: 1000 | D31: 5850 | E31: 11297.04 | F31: 2053.9408 | G31: 3035 | H31: 93.7815 | I31: 107879.7623
A32: TF T 103 / T 105N | B32: 100350 | C32: 1000 | D32: 5800 | E32: 11562.78 | F32: 2102.2556 | G32: 3035 | H32: 93.7815 | I32: 110343.8171
A33: RAFFIA R 103 | B33: 104150 | C33: 1000 | D33: 6650 | E33: 11927.4 | F33: 2168.548 | G33: 3035 | H33: 93.7815 | I33: 113724.7295
A34: BOPP F 103 / F 103S | B34: 100550 | C34: 1000 | D34: 6000 | E34: 11562.78 | F34: 2102.2556 | G34: 3035 | H34: 93.7815 | I34: 110343.8171
A35: PP M 108/ M106 | B35: 98150 | C35: 1000 | D35: 6050 | E35: 11259.96 | F35: 2047.1992 | G35: 3035 | H35: 93.7815 | I35: 107535.9407
A36: PP F135 / E125 | B36: 100150 | C36: 1000 | D36: 6100 | E36: 11500.98 | F36: 2091.0196 | G36: 3035 | H36: 93.7815 | I36: 109770.7811
A37: PP HP OG | B37: 93250 | C37: 0 | D37: 0 | E37: 11525.7 | F37: 2095.514 | G37: 3035 | H37: 93.7815 | I37: 109999.9955
A38: PP PS | B38: 89250 | C38: 0 | D38: 0 | E38: 11031.3 | F38: 2005.626 | G38: 3035 | H38: 93.7815 | I38: 105415.7075
A39: PP WS | B39: 87250 | C39: 0 | D39: 0 | E39: 10784.1 | F39: 1960.682 | G39: 3035 | H39: 93.7815 | I39: 103123.5635
A40: PP CP/RCP
A41: PPCP M 311T | B41: 106100 | C41: 1000 | D41: 6950 | E41: =+(B41-C41-D41)*0.1236 -> 12131.34 | F41: =+(B41-C41-D41+E41)*0.02 -> 2205.6268 | G41: 3035 | H41: =+G41*0.0309 -> 93.7815 | I41: =+B41-C41-D41+E41+F41+G41+H41 -> 115615.7483
A42: PPCP M 340 / M365 | B42: 103800 | C42: 1000 | D42: 6400 | E42: 11915.04 | F42: 2166.3008 | G42: 3035 | H42: 93.7815 | I42: 113610.1223
A43: PP CP M 310 | B43: 104500 | C43: 1000 | D43: 6350 | E43: 12007.74 | F43: 2183.1548 | G43: 3035 | H43: 93.7815 | I43: 114469.6763
A44: PP CP M 312 | B44: 102600 | C44: 1000 | D44: 6700 | E44: 11729.64 | F44: 2132.5928 | G44: 3035 | H44: 93.7815 | I44: 111891.0143
A45: PP CP M 304 / M 325 | B45: 102550 | C45: 1000 | D45: 6700 | E45: 11723.46 | F45: 2131.4692 | G45: 3035 | H45: 93.7815 | I45: 111833.7107
A46: PP CP M 307 / M 315 | B46: 102050 | C46: 1000 | D46: 6750 | E46: 11655.48 | F46: 2119.1096 | G46: 3035 | H46: 93.7815 | I46: 111203.3711
A47: PP RCP B 200 | B47: 101900 | C47: 1000 | D47: 6500 | E47: 11667.84 | F47: 2121.3568 | G47: 3035 | H47: 93.7815 | I47: 111317.9783
A48: PP RCP B202S | B48: 105900 | C48: 1000 | D48: 3050 | E48: 12588.66 | F48: 2288.7732 | G48: 3035 | H48: 93.7815 | I48: 119856.2147
A49: PP RCP M212S | B49: 104100 | C49: 1000 | D49: 6600 | E49: 11927.4 | F49: 2168.548 | G49: 3035 | H49: 93.7815 | I49: 113724.7295
A50: LLDPE
A51: FILM 71601D | B51: 99450 | C51: 1000 | D51: 7550 | E51: =+(B51-C51-D51)*0.1236 -> 11235.24 | F51: =+(B51-C51-D51+E51)*0.02 -> 2042.7048 | G51: 3035 | H51: =+G51*0.0309 -> 93.7815 | I51: =+B51-C51-D51+E51+F51+G51+H51 -> 107306.7263
A52: FILM 71501S,71601W | B52: 98900 | C52: 1000 | D52: 8000 | E52: 11111.64 | F52: 2020.2328 | G52: 3035 | H52: 93.7815 | I52: 106160.6543
A53: FILM 71602 S / W | B53: 98900 | C53: 1000 | D53: 8000 | E53: 11111.64 | F53: 2020.2328 | G53: 3035 | H53: 93.7815 | I53: 106160.6543
A54: ROTO 73005 T/73204 T | B54: 99750 | C54: 1000 | D54: 6400 | E54: 11414.46 | F54: 2075.2892 | G54: 3035 | H54: 93.7815 | I54: 108968.5307
A55: ROTO 73005 TU | B55: 101250 | C55: 1000 | D55: 6400 | E55: 11599.86 | F55: 2108.9972 | G55: 3035 | H55: 93.7815 | I55: 110687.6387
A56: EC 72307 E | B56: 100950 | C56: 1000 | D56: 7200 | E56: 11463.9 | F56: 2084.278 | G56: 3035 | H56: 93.7815 | I56: 109426.9595
A57: LLT - 12 | B57: 100450 | C57: 1000 | D57: 7200 | E57: =+(B57-C57-D57)*0.1236 -> 11402.1 | F57: 2073.042 | G57: 3035 | H57: =+G57*0.0309 -> 93.7815 | I57: 108853.9235
A58: OG | B58: 94400 | C58: 0 | D58: 2100 | E58: 11408.28 | F58: 2074.1656 | G58: 3035 | H58: 93.7815 | I58: 108911.2271
A59: POST SALES QUANTITY DISCOUNT AS APPLICABLE
A60: QTY. MT FOR HD / LL | B60: >= 10 | C60: >=15 | D60: >=30 | E60: >=60 | F60: >= 100 | G60: >= 200 | H60: >= 400
A61: HDPE/LLDPE | B61: 300/- | C61: 300/- | D61: 400/- | E61: 450/- | F61: 550/- | G61: 650/- | H61: 750/-
A62: QTY. MT FOR PP | B62: >=15 | C62: >=30 | D62: >=60 | E62: >=100 | F62: >=200 | G62: >=400
A63: PP | B63: 300/- | C63: 400/- | D63: 450/- | E63: 550/- | F63: 650/- | G63: 750/-
A64: · FOR CREDIT PURCHASE INTREST FREE CREDIT WILL BE 14 DAYS FROM THE DATE OF INVOICE. AN EPI
A65: RS. 70 / MT PER DAY FOR EX-PLANT
A66: · Trade Discount of Rs. 4000 PMT applicable on R103 - to be adjusted pre-exice basis on Ex-plant sales only.
A67: · Trade Discount of Rs. 3000 PMT applicable on R5801 - to be adjusted pre-exice basis on Ex-plant sales only.
A68: · Trade Discount of Rs. 2000 PMT applicable on B5500 - to be adjusted pre-exice basis on Ex-plant sales only.
A69: · NON PRIME GRADE RS.800/MT LESS THAN THE BASIC PRIME GRADE.
A70: · CHEQUE RETURN PENALTY RS.1000/-PER INSTRUMENT.
A71: · UNLOADING & VARAI CHARGES TO BE BORNE BY THE CUSTOMER.
A72: · “C” FORM REQUIRED IN ADVANCE.
A73: · QUANTITY DISCOUNT WOULD NOT BE APPLICABLE ON COMBINATION OF HDPE AND LLDPE GRADES.
A74: · PRICE MAY CHANGE WITHOUT ANY PRIOR NOTICE. PRICE PREVAILING AT THE TIME OF DISPATCH WILL APPLY.
A75: REGARDS
A76: HITESH SHAH - 9820106078
A77: GIRISH SHAH - 9320949656

Sheet MAHA(O.V.)
A1: GANPATI PETROCHEMICALS
A2: Consigment Stockist of : HALDIA PETROCHEMICALS LTD.
A3: 152,Sanjay Bldg. No. 6,Mittal Ind.Estate,Andheri Kurla Road,Marol,Andheri(East),MUMBAI-400 059.
A4: Tel. 28509801 / 28517451 / 32460637 Telefax. 28509802 / E- MAIL ganpetro@vsnl.com
A5: HDPE / PP / LLDPE PRICES EX-HALDIA PETROCHEMICALS LTD. PLANT FOR MAHARATRA(O.V.)
A6: Bhivandi W.H. Add :- Godown No. 20,Thakkar Compound,Valgaon,Anjur Rd,Bhivandi,Dist. Thane. TEL:- 09324038864
A7: HDPE, LLDPE & PP PRICE W.E.F. DT. 13.06.2013
A8: GRADE | B8: BASIC | C8: LESS. | D8: LESS. | E8: ADD | F8: ADD CST | G8: CASH AMT
A9: HDPE | C9: C.D. | D9: LOC.SUB | E9: 0.1236 | F9: 0.02 | G9: PMT
A10: IM 6007L / M 5005L | B10: 95050 | C10: 1000 | D10: 6150 | E10: =+(B10-C10-D10)*0.1236 -> 10864.44 | F10: =+(B10-C10-D10+E10)*0.02 -> 1975.2888 | G10: =+B10-C10-D10+E10+F10 -> 100739.7288 | I10: TRANS.CHARGES PMT.
A11: IM( 7MFI) M 6007LU | B11: 96550 | C11: 1000 | D11: 6150 | E11: =+(B11-C11-D11)*0.1236 -> 11049.84 | F11: =+(B11-C11-D11+E11)*0.02 -> 2008.9968 | G11: =+B11-C11-D11+E11+F11 -> 102458.8368
A12: IM( 4.5 MFI ) M 5002L | B12: 94550 | C12: 1000 | D12: 6150 | E12: 10802.64 | F12: 1964.0528 | G12: 100166.6928
A13: HD BM B 6401 | B13: 94000 | C13: 1000 | D13: 6150 | E13: 10734.66 | F13: 1951.6932 | G13: 99536.3532 | H13: LOCATIONS | I13: FREIGHT | J13: ADD S.T.
A14: HD BM E 5201 | B14: 95500 | C14: 1000 | D14: 6150 | E14: 10920.06 | F14: 1985.4012 | G14: 101255.4612 | H14: **T.D. | I14: RS/MT. | J14: 0.0309
A15: HD BM E5201S | B15: 94500 | C15: 1000 | D15: 6150 | E15: 10796.46 | F15: 1962.9292 | G15: 100109.3892
A16: MBM B 5500 | B16: 97200 | C16: 1000 | D16: 6350 | E16: 11105.46 | F16: 2019.1092 | G16: 102974.5692
A17: HM FILM F 5600/5400 | B17: 94950 | C17: 1000 | D17: 5850 | E17: 10889.16 | F17: 1979.7832 | G17: 100968.9432 | H17: AHMEDNAGAR-5 | I17: 2945 | J17: =+I17*0.0309 -> 91.0005
A18: RAF/MFIL R5801 | B18: 97350 | C18: 1000 | D18: 6000 | E18: 11167.26 | F18: 2030.3452 | G18: 103547.6052
A19: RAF/MFIL HD T9 | B19: 94050 | C19: 1000 | D19: 6000 | E19: 10759.38 | F19: 1956.1876 | G19: 99765.5676 | H19: THANE - 5 | I19: 3134 | J19: =+I19*0.0309 -> 96.8406
A20: HD FILM HDT6 / F5001 | B20: 95850 | C20: 1000 | D20: 6600 | E20: 10907.7 | F20: 1983.154 | G20: 101140.854 | H20: ALIBAUGH - 5 | I20: 3527 | J20: =+I20*0.0309 -> 108.9843
A21: PIPE P5200UV | B21: 98750 | C21: 1000 | D21: 6850 | E21: 11235.24 | F21: 2042.7048 | G21: 104177.9448
A22: IM M 5018L/M 5025L/M5818 | B22: 93900 | C22: 1000 | D22: 6000 | E22: 10740.84 | F22: 1952.8168 | G22: 99593.6568 | H22: GRT.MUMBAI -5 | I22: 3189 | J22: =+I22*0.0309 -> 98.5401
A23: RAF HD T10 / HD T10S | B23: 94950 | C23: 1000 | D23: 6150 | E23: 10852.08 | F23: 1973.0416 | G23: 100625.1216 | H23: IGATPURI - 5 | I23: 2836 | J23: =+I23*0.0309 -> 87.6324
A24: PIPE P 5300 | B24: 100200 | C24: 1000 | D24: 6950 | E24: 11402.1 | F24: 2073.042 | G24: 105725.142 | H24: KALYAN - 5 | I24: 3036 | J24: =+I24*0.0309 -> 93.8124
A25: PIPE P5200(P.E-63) | B25: 97250 | C25: 1000 | D25: 6850 | E25: 11049.84 | F25: 2008.9968 | G25: 102458.8368 | H25: VASAI | I25: 3135 | J25: =+I25*0.0309 -> 96.8715
A26: HD T9C | B26: 89750 | C26: 0 | D26: 2000 | E26: 10845.9 | F26: 1971.918 | G26: 100567.818 | H26: KHOPOLI - 5 | I26: 3454 | J26: =+I26*0.0309 -> 106.7286
A27: OG | B27: 88750 | C27: 0 | D27: 2000 | E27: 10722.3 | F27: 1949.446 | G27: 99421.746 | H27: BHIWANDI - 5 | I27: 3035 | J27: 93.7815
A28: PP | H28: LONAVALA - 6 | I28: 3203 | J28: 98.9727
A29: FILM F 110 | B29: 99800 | C29: 1000 | D29: 5800 | E29: =+(B29-C29-D29)*0.1236 -> 11494.8 | F29: =+(B29-C29-D29+E29)*0.02 -> 2089.896 | G29: 106584.696 | H29: MURBAD - 5 | I29: 3132 | J29: 96.7788
A30: HPIM M 103 | B30: 99600 | C30: 1000 | D30: 6600 | E30: 11371.2 | F30: 2067.424 | G30: 105438.624 | H30: PUNE - 5 | I30: 3113 | J30: 96.1917
A31: HPIM M 110 | B31: 98250 | C31: 1000 | D31: 5850 | E31: 11297.04 | F31: 2053.9408 | G31: 104750.9808 | H31: NAGHOTHANE-5 | I31: 3246 | J31: 100.3014
A32: TF T 103 / T 105N | B32: 100350 | C32: 1000 | D32: 5800 | E32: 11562.78 | F32: 2102.2556 | G32: 107215.0356 | H32: NASIK - 5 | I32: 2807 | J32: 86.7363
A33: RAFFIA R 103 | B33: 104150 | C33: 1000 | D33: 6650 | E33: 11927.4 | F33: 2168.548 | G33: 110595.948 | H33: SINNAR-5 | I33: 2830 | J33: 87.447
A34: BOPP F 103 / F 103S | B34: 100550 | C34: 1000 | D34: 6000 | E34: 11562.78 | F34: 2102.2556 | G34: 107215.0356 | H34: MALEGAON-5 | I34: 3061 | J34: 94.5849
A35: PP M 108/ M106 | B35: 98150 | C35: 1000 | D35: 6050 | E35: 11259.96 | F35: 2047.1992 | G35: 104407.1592
A36: PP F135 / E125 | B36: 100150 | C36: 1000 | D36: 6100 | E36: 11500.98 | F36: 2091.0196 | G36: 106641.9996
A37: PP HP OG | B37: 93250 | C37: 0 | D37: 0 | E37: 11525.7 | F37: 2095.514 | G37: 106871.214 | H37: NEW BOMBAY- 5 | I37: 3189 | J37: =+I37*0.0309 -> 98.5401
A38: PP PS | B38: 89250 | C38: 0 | D38: 0 | E38: 11031.3 | F38: 2005.626 | G38: 102286.926 | H38: PALGHAR - 5 | I38: 3239 | J38: =+I38*0.0309 -> 100.0851
A39: PP WS | B39: 87250 | C39: 0 | D39: 0 | E39: 10784.1 | F39: 1960.682 | G39: 99994.782 | H39: DHULIA - 5 | I39: 2774 | J39: =+I39*0.0309 -> 85.7166
A40: PP CP/RCP | E40: =(B40-C40-D40)*16% -> 0 | G40: =(B40-C40-D40)*16%+(B40-C40-D40) -> 0 | H40: *T.D.=TRANSIT DAYS
A41: PPCP M 311T | B41: 106100 | C41: 1000 | D41: 6950 | E41: =+(B41-C41-D41)*0.1236 -> 12131.34 | F41: =+(B41-C41-D41+E41)*0.02 -> 2205.6268 | G41: 112486.9668
A42: PPCP M 340 / M365 | B42: 103800 | C42: 1000 | D42: 6400 | E42: 11915.04 | F42: 2166.3008 | G42: 110481.3408
A43: PP CP M 310 | B43: 104500 | C43: 1000 | D43: 6350 | E43: 12007.74 | F43: 2183.1548 | G43: 111340.8948
A44: PP CP M 312 | B44: 102600 | C44: 1000 | D44: 6700 | E44: 11729.64 | F44: 2132.5928 | G44: 108762.2328
A45: PP CP M 304 / M 325 | B45: 102550 | C45: 1000 | D45: 6700 | E45: 11723.46 | F45: 2131.4692 | G45: 108704.9292
A46: PP CP M 307 / M 315 | B46: 102050 | C46: 1000 | D46: 6750 | E46: 11655.48 | F46: 2119.1096 | G46: 108074.5896
A47: PP RCP B 200 | B47: 101900 | C47: 1000 | D47: 6500 | E47: 11667.84 | F47: 2121.3568 | G47: 108189.1968
A48: PP RCP B202S | B48: 105900 | C48: 1000 | D48: 3050 | E48: 12588.66 | F48: 2288.7732 | G48: 116727.4332
A49: PP RCP M212S | B49: 104100 | C49: 1000 | D49: 6600 | E49: 11927.4 | F49: 2168.548 | G49: 110595.948
A50: LLDPE
A51: FILM 71601D | B51: 99450 | C51: 1000 | D51: 7550 | E51: =+(B51-C51-D51)*0.1236 -> 11235.24 | F51: =+(B51-C51-D51+E51)*0.02 -> 2042.7048 | G51: 104177.9448
A52: FILM 71501S,71601W | B52: 98900 | C52: 1000 | D52: 8000 | E52: 11111.64 | F52: 2020.2328 | G52: 103031.8728
A53: FILM 71602 S / W | B53: 98900 | C53: 1000 | D53: 8000 | E53: 11111.64 | F53: 2020.2328 | G53: 103031.8728
A54: ROTO 73005 T/73204 T | B54: 99750 | C54: 1000 | D54: 6400 | E54: 11414.46 | F54: 2075.2892 | G54: 105839.7492
A55: ROTO 73005 TU | B55: 101250 | C55: 1000 | D55: 6400 | E55: 11599.86 | F55: 2108.9972 | G55: 107558.8572
A56: EC 72307 E | B56: 100950 | C56: 1000 | D56: 7200 | E56: 11463.9 | F56: 2084.278 | G56: 106298.178
A57: LLT - 12 | B57: 100450 | C57: 1000 | D57: 7200 | E57: =+(B57-C57-D57)*0.1236 -> 11402.1 | F57: 2073.042 | G57: 105725.142
A58: OG | B58: 94400 | C58: 0 | D58: 2100 | E58: 11408.28 | F58: 2074.1656 | G58: 105782.4456
A59: POST SALES QUANTITY DISCOUNT AS APPLICABLE
A60: QTY. MT FOR HD / LL | B60: >= 10 | C60: >=15 | D60: >=30 | E60: >=60 | F60: >= 100 | G60: >= 200 | H60: >= 400
A61: HDPE/LLDPE | B61: 300/- | C61: 300/- | D61: 400/- | E61: 450/- | F61: 550/- | G61: 650/- | H61: 750/-
A62: QTY. MT FOR PP | B62: >=15 | C62: >=30 | D62: >=60 | E62: >=100 | F62: >=200 | G62: >=400
A63: PP | B63: 300/- | C63: 400/- | D63: 450/- | E63: 550/- | F63: 650/- | G63: 750/-
A64: · FOR CREDIT PURCHASE INTREST FREE CREDIT WILL BE 14 DAYS FROM THE DATE OF INVOICE. AN EPI
A65: RS. 70 / MT PER DAY FOR EX-PLANT
A66: · Trade Discount of Rs. 4000 PMT applicable on R103 - to be adjusted pre-exice basis on Ex-plant sales only.
A67: · Trade Discount of Rs. 3000 PMT applicable on R5801 - to be adjusted pre-exice basis on Ex-plant sales only.
A68: · Trade Discount of Rs. 2000 PMT applicable on B5500 - to be adjusted pre-exice basis on Ex-plant sales only.
A69: · NON PRIME GRADE RS.800/MT LESS THAN THE BASIC PRIME GRADE.
A70: · CHEQUE RETURN PENALTY RS.1000/-PER INSTRUMENT.
A71: · UNLOADING & VARAI CHARGES TO BE BORNE BY THE CUSTOMER.
A72: · “C” FORM REQUIRED IN ADVANCE.
A73: · QUANTITY DISCOUNT WOULD NOT BE APPLICABLE ON COMBINATION OF HDPE AND LLDPE GRADES.
A74: · PRICE MAY CHANGE WITHOUT ANY PRIOR NOTICE. PRICE PREVAILING AT THE TIME OF DISPATCH WILL APPLY.
A75: REGARDS
A76: HITESH SHAH - 9820106078
A77: GIRISH SHAH - 9320949656

Sheet MAHA(VIDH)
A1: GANPATI PETROCHEMICALS
A2: Consigment Stockist of : HALDIA PETROCHEMICALS LTD.
A3: 152,Sanjay Bldg. No. 6,Mittal Ind.Estate,Andheri Kurla Road,Marol,Andheri(East),MUMBAI-400 059.
A4: Tel. 28509801 / 28517451 / 32460637 Telefax. 28509802 / E- MAIL ganpetro@vsnl.com
A5: HDPE / PP / LLDPE PRICES EX-HALDIA PETROCHEMICALS LTD. PLANT FOR MAHARASTRA(vidharbh)
A6: Bhivandi W.H. Add :- Godown No. 20,Thakkar Compound,Valgaon,Anjur Rd,Bhivandi,Dist. Thane. TEL:- 09324038864
A7: HDPE, LLDPE & PP PRICE W.E.F. DT. 13.06.2013
A8: GRADE | B8: BASIC | C8: LESS. | D8: LESS. | E8: ADD | F8: ADD CST | G8: CASH AMT
A9: HDPE | C9: C.D. | D9: LOC.SUB | E9: 0.1236 | F9: 0.02 | G9: PMT
A10: IM 6007L / M 5005L | B10: 95050 | C10: 1000 | D10: 3500 | E10: =+(B10-C10-D10)*0.1236 -> 11191.98 | F10: =+(B10-C10-D10+E10)*0.02 -> 2034.8396 | G10: =+B10-C10-D10+E10+F10 -> 103776.8196 | I10: TRANS.CHARGES PMT.
A11: IM( 7MFI) M 6007LU | B11: 96550 | C11: 1000 | D11: 3500 | E11: =+(B11-C11-D11)*0.1236 -> 11377.38 | F11: =+(B11-C11-D11+E11)*0.02 -> 2068.5476 | G11: =+B11-C11-D11+E11+F11 -> 105495.9276
A12: IM( 4.5 MFI ) M 5002L | B12: 94550 | C12: 1000 | D12: 3500 | E12: 11130.18 | F12: 2023.6036 | G12: 103203.7836
A13: HD BM B 6401 | B13: 94000 | C13: 1000 | D13: 3550 | E13: 11056.02 | F13: 2010.1204 | G13: 102516.1404 | H13: LOCATIONS | I13: FREIGHT | J13: ADD S.T.
A14: HD BM E 5201 | B14: 95500 | C14: 1000 | D14: 3550 | E14: 11241.42 | F14: 2043.8284 | G14: 104235.2484 | H14: **T.D. | I14: RS/MT. | J14: 0.0309
A15: HD BM E5201S | B15: 94500 | C15: 1000 | D15: 3550 | E15: 11117.82 | F15: 2021.3564 | G15: 103089.1764
A16: MBM B 5500 | B16: 97200 | C16: 1000 | D16: 3750 | E16: 11426.82 | F16: 2077.5364 | G16: 105954.3564
A17: HM FILM F 5600/5400 | B17: 94950 | C17: 1000 | D17: 3600 | E17: 11167.26 | F17: 2030.3452 | G17: 103547.6052 | H17: NAGPUR-3 | I17: 1981 | J17: =+I17*0.0309 -> 61.2129
A18: RAF/MFIL R5801 | B18: 97350 | C18: 1000 | D18: 3350 | E18: 11494.8 | F18: 2089.896 | G18: 106584.696
A19: RAF/MFIL HD T9 | B19: 94050 | C19: 1000 | D19: 3350 | E19: 11086.92 | F19: 2015.7384 | G19: 102802.6584 | H19: AMRAVATI-4 | I19: 2536 | J19: =+I19*0.0309 -> 78.3624
A20: HD FILM HDT6 / F5001 | B20: 95850 | C20: 1000 | D20: 4100 | E20: 11216.7 | F20: 2039.334 | G20: 104006.034
A21: PIPE P5200UV | B21: 98750 | C21: 1000 | D21: 4250 | E21: 11556.6 | F21: 2101.132 | G21: 107157.732 | H21: WARDHA-3 | I21: 2113 | J21: =+I21*0.0309 -> 65.2917
A22: IM M 5018L/M 5025L/M5818 | B22: 93900 | C22: 1000 | D22: 3600 | E22: 11037.48 | F22: 2006.7496 | G22: 102344.2296
A23: RAF HD T10 / HD T10S | B23: 94950 | C23: 1000 | D23: 3750 | E23: 11148.72 | F23: 2026.9744 | G23: 103375.6944
A24: PIPE P 5300 | B24: 100200 | C24: 1000 | D24: 4300 | E24: 11729.64 | F24: 2132.5928 | G24: 108762.2328
A25: PIPE P5200(P.E-63) | B25: 97250 | C25: 1000 | D25: 4250 | E25: 11371.2 | F25: 2067.424 | G25: 105438.624
A26: HD T9C | B26: 89750 | C26: 0 | D26: 2000 | E26: 10845.9 | F26: 1971.918 | G26: 100567.818
A27: OG | B27: 88750 | C27: 0 | D27: 2000 | E27: 10722.3 | F27: 1949.446 | G27: 99421.746
A28: PP
A29: FILM F 110 | B29: 99800 | C29: 1000 | D29: 2600 | E29: =+(B29-C29-D29)*0.1236 -> 11890.32 | F29: =+(B29-C29-D29+E29)*0.02 -> 2161.8064 | G29: 110252.1264 | H29: *T.D.=TRANSIT DAYS
A30: HPIM M 103 | B30: 99600 | C30: 1000 | D30: 4100 | E30: 11680.2 | F30: 2123.604 | G30: 108303.804
A31: HPIM M 110 | B31: 98250 | C31: 1000 | D31: 2400 | E31: 11723.46 | F31: 2131.4692 | G31: 108704.9292
A32: TF T 103 / T 105N | B32: 100350 | C32: 1000 | D32: 3000 | E32: 11908.86 | F32: 2165.1772 | G32: 110424.0372
A33: RAFFIA R 103 | B33: 104150 | C33: 1000 | D33: 4150 | E33: 12236.4 | F33: 2224.728 | G33: 113461.128
A34: BOPP F 103 / F 103S | B34: 100550 | C34: 1000 | D34: =+[1]PP!F13 -> 3550 | E34: 11865.6 | F34: 2157.312 | G34: 110022.912
A35: PP M 108/ M106 | B35: 98150 | C35: 1000 | D35: 2650 | E35: 11680.2 | F35: 2123.604 | G35: 108303.804
A36: PP F135 / E125 | B36: 100150 | C36: 1000 | D36: 3500 | E36: 11822.34 | F36: 2149.4468 | G36: 109621.7868
A37: PP HP OG | B37: 93250 | C37: 0 | D37: 0 | E37: 11525.7 | F37: 2095.514 | G37: 106871.214
A38: PP PS | B38: 89250 | C38: 0 | D38: 0 | E38: 11031.3 | F38: 2005.626 | G38: 102286.926
A39: PP WS | B39: 87250 | C39: 0 | D39: 0 | E39: 10784.1 | F39: 1960.682 | G39: 99994.782
A40: PP CP/RCP | E40: =(B40-C40-D40)*16% -> 0 | G40: =(B40-C40-D40)*16%+(B40-C40-D40) -> 0
A41: PPCP M 311T | B41: 106100 | C41: 1000 | D41: 4400 | E41: =+(B41-C41-D41)*0.1236 -> 12446.52 | F41: =+(B41-C41-D41+E41)*0.02 -> 2262.9304 | G41: 115409.4504
A42: PPCP M 340 / M365 | B42: 103800 | C42: 1000 | D42: 3950 | E42: 12217.86 | F42: 2221.3572 | G42: 113289.2172
A43: PP CP M 310 | B43: 104500 | C43: 1000 | D43: =+[1]PP!P13 -> 3800 | E43: 12322.92 | F43: 2240.4584 | G43: 114263.3784
A44: PP CP M 312 | B44: 102600 | C44: 1000 | D44: 4150 | E44: 12044.82 | F44: 2189.8964 | G44: 111684.7164
A45: PP CP M 304 / M 325 | B45: 102550 | C45: 1000 | D45: 4150 | E45: 12038.64 | F45: 2188.7728 | G45: 111627.4128
A46: PP CP M 307 / M 315 | B46: 102050 | C46: 1000 | D46: 4200 | E46: 11970.66 | F46: 2176.4132 | G46: 110997.0732
A47: PP RCP B 200 | B47: 101900 | C47: 1000 | D47: 4000 | E47: 11976.84 | F47: 2177.5368 | G47: 111054.3768
A48: PP RCP B202S | B48: 105900 | C48: 1000 | D48: 3750 | E48: 12502.14 | F48: 2273.0428 | G48: 115925.1828
A49: PP RCP M212S | B49: 104100 | C49: 1000 | D49: =+[1]PP!K13 -> 4200 | E49: 12224.04 | F49: 2222.4808 | G49: 113346.5208
A50: LLDPE
A51: FILM 71601D | B51: 99450 | C51: 1000 | D51: 4850 | E51: =+(B51-C51-D51)*0.1236 -> 11568.96 | F51: =+(B51-C51-D51+E51)*0.02 -> 2103.3792 | G51: 107272.3392
A52: FILM 71501S,71601W | B52: 98900 | C52: 1000 | D52: 5300 | E52: 11445.36 | F52: 2080.9072 | G52: 106126.2672
A53: FILM 71602 S / W | B53: 98900 | C53: 1000 | D53: 5300 | E53: 11445.36 | F53: 2080.9072 | G53: 106126.2672
A54: ROTO 73005 T/73204 T | B54: 99750 | C54: 1000 | D54: 3700 | E54: 11748.18 | F54: 2135.9636 | G54: 108934.1436
A55: ROTO 73005 TU | B55: 101250 | C55: 1000 | D55: 3700 | E55: 11933.58 | F55: 2169.6716 | G55: 110653.2516
A56: EC 72307 E | B56: 100950 | C56: 1000 | D56: 4550 | E56: 11791.44 | F56: 2143.8288 | G56: 109335.2688
A57: LLT - 12 | B57: 100450 | C57: 1000 | D57: 4550 | E57: =+(B57-C57-D57)*0.1236 -> 11729.64 | F57: 2132.5928 | G57: 108762.2328
A58: OG | B58: 94400 | C58: 0 | D58: 2100 | E58: 11408.28 | F58: 2074.1656 | G58: 105782.4456
A59: POST SALES QUANTITY DISCOUNT AS APPLICABLE
A60: QTY. MT FOR HD / LL | B60: >= 10 | C60: >=15 | D60: >=30 | E60: >=60 | F60: >= 100 | G60: >= 200 | H60: >= 400
A61: HDPE/LLDPE | B61: 300/- | C61: 300/- | D61: 400/- | E61: 450/- | F61: 550/- | G61: 650/- | H61: 750/-
A62: QTY. MT FOR PP | B62: >=15 | C62: >=30 | D62: >=60 | E62: >=100 | F62: >=200 | G62: >=400
A63: PP | B63: 300/- | C63: 400/- | D63: 450/- | E63: 550/- | F63: 650/- | G63: 750/-
A64: · FOR CREDIT PURCHASE INTREST FREE CREDIT WILL BE 14 DAYS FROM THE DATE OF INVOICE. AN EPI
A65: RS. 70 / MT PER DAY FOR EX-PLANT
A66: · Trade Discount of Rs. 4000 PMT applicable on R103 - to be adjusted pre-exice basis on Ex-plant sales only.
A67: · Trade Discount of Rs. 3000 PMT applicable on R5801 - to be adjusted pre-exice basis on Ex-plant sales only.
A68: · Trade Discount of Rs. 2000 PMT applicable on B5500 - to be adjusted pre-exice basis on Ex-plant sales only.
A69: · NON PRIME GRADE RS.800/MT LESS THAN THE BASIC PRIME GRADE.
A70: · CHEQUE RETURN PENALTY RS.1000/-PER INSTRUMENT.
A71: · UNLOADING & VARAI CHARGES TO BE BORNE BY THE CUSTOMER.
A72: · “C” FORM REQUIRED IN ADVANCE.
A73: · QUANTITY DISCOUNT WOULD NOT BE APPLICABLE ON COMBINATION OF HDPE AND LLDPE GRADES.
A74: · PRICE MAY CHANGE WITHOUT ANY PRIOR NOTICE. PRICE PREVAILING AT THE TIME OF DISPATCH WILL APPLY.
A75: REGARDS
A76: HITESH SHAH - 9820106078
A77: GIRISH SHAH - 9320949656

Sheet MAHA(KHAN)
A1: GANPATI PETROCHEMICALS
A2: Consigment Stockist of : HALDIA PETROCHEMICALS LTD.
A3: 152,Sanjay Bldg. No. 6,Mittal Ind.Estate,Andheri Kurla Road,Marol,Andheri(East),MUMBAI-400 059.
A4: Tel. 28509801 / 28517451 / 32460637 Telefax. 28509802 / E- MAIL ganpetro@vsnl.com
A5: HDPE / PP / LLDPE PRICES EX-HALDIA PETROCHEMICALS LTD. PLANT FOR MAHARASTRA(khandesh)
A6: Bhivandi W.H. Add :- Godown No. 20,Thakkar Compound,Valgaon,Anjur Rd,Bhivandi,Dist. Thane. TEL:- 09324038864
A7: HDPE, LLDPE & PP PRICE W.E.F. DT. 13.06.2013
A8: GRADE | B8: BASIC | C8: LESS. | D8: LESS. | E8: ADD | F8: ADD CST | G8: CASH AMT
A9: HDPE | C9: C.D. | D9: LOC.SUB | E9: 0.1236 | F9: 0.02 | G9: PMT
A10: IM 6007L / M 5005L | B10: 95050 | C10: 1000 | D10: 5000 | E10: =+(B10-C10-D10)*0.1236 -> 11006.58 | F10: =+(B10-C10-D10+E10)*0.02 -> 2001.1316 | G10: =+B10-C10-D10+E10+F10 -> 102057.7116 | I10: TRANS.CHARGES PMT.
A11: IM( 7MFI) M 6007LU | B11: 96550 | C11: 1000 | D11: 5000 | E11: =+(B11-C11-D11)*0.1236 -> 11191.98 | F11: =+(B11-C11-D11+E11)*0.02 -> 2034.8396 | G11: =+B11-C11-D11+E11+F11 -> 103776.8196
A12: IM( 4.5 MFI ) M 5002L | B12: 94550 | C12: 1000 | D12: 5000 | E12: 10944.78 | F12: 1989.8956 | G12: 101484.6756
A13: HD BM B 6401 | B13: 94000 | C13: 1000 | D13: 5000 | E13: 10876.8 | F13: 1977.536 | G13: 100854.336 | H13: LOCATIONS | I13: FREIGHT | J13: ADD S.T.
A14: HD BM E 5201 | B14: 95500 | C14: 1000 | D14: 5000 | E14: 11062.2 | F14: 2011.244 | G14: 102573.444 | H14: **T.D. | I14: RS/MT. | J14: 0.0309
A15: HD BM E5201S | B15: 94500 | C15: 1000 | D15: 5000 | E15: 10938.6 | F15: 1988.772 | G15: 101427.372
A16: MBM B 5500 | B16: 97200 | C16: 1000 | D16: 5250 | E16: 11241.42 | F16: 2043.8284 | G16: 104235.2484
A17: HM FILM F 5600/5400 | B17: 94950 | C17: 1000 | D17: 4700 | E17: 11031.3 | F17: 2005.626 | G17: 102286.926 | H17: AURANGABAD-4 | I17: 2770 | J17: =+I17*0.0309 -> 85.593
A18: RAF/MFIL R5801 | B18: 97350 | C18: 1000 | D18: 4850 | E18: 11309.4 | F18: 2056.188 | G18: 104865.588
A19: RAF/MFIL HD T9 | B19: 94050 | C19: 1000 | D19: 4850 | E19: 10901.52 | F19: 1982.0304 | G19: 101083.5504 | H19: JALNA-4 | I19: 2802 | J19: =+I19*0.0309 -> 86.5818
A20: HD FILM HDT6 / F5001 | B20: 95850 | C20: 1000 | D20: 5550 | E20: 11037.48 | F20: 2006.7496 | G20: 102344.2296 | H20: JALGAON-4 | I20: 2553 | J20: =+I20*0.0309 -> 78.8877
A21: PIPE P5200UV | B21: 98750 | C21: 1000 | D21: 5750 | E21: 11371.2 | F21: 2067.424 | G21: 105438.624 | H21: LATUR-5 | I21: 2885 | J21: =+I21*0.0309 -> 89.1465
A22: IM M 5018L/M 5025L/M5818 | B22: 93900 | C22: 1000 | D22: 5000 | E22: 10864.44 | F22: 1975.2888 | G22: 100739.7288
A23: RAF HD T10 / HD T10S | B23: 94950 | C23: 1000 | D23: 5100 | E23: 10981.86 | F23: 1996.6372 | G23: 101828.4972 | H23: NANDED-4 | I23: 2952 | J23: =+I23*0.0309 -> 91.2168
A24: PIPE P 5300 | B24: 100200 | C24: 1000 | D24: 5800 | E24: 11544.24 | F24: 2098.8848 | G24: 107043.1248
A25: PIPE P5200(P.E-63) | B25: 97250 | C25: 1000 | D25: 5750 | E25: 11185.8 | F25: 2033.716 | G25: 103719.516 | H25: CHALISGAON | I25: 2591 | J25: =+I25*0.0309 -> 80.0619
A26: HD T9C | B26: 89750 | C26: 0 | D26: 2000 | E26: 10845.9 | F26: 1971.918 | G26: 100567.818
A27: OG | B27: 88750 | C27: 0 | D27: 2000 | E27: 10722.3 | F27: 1949.446 | G27: 99421.746
A28: PP
A29: FILM F 110 | B29: 99800 | C29: 1000 | D29: 4700 | E29: =+(B29-C29-D29)*0.1236 -> 11630.76 | F29: =+(B29-C29-D29+E29)*0.02 -> 2114.6152 | G29: =+B29-C29-D29+E29+F29 -> 107845.3752 | H29: *T.D.=TRANSIT DAYS
A30: HPIM M 103 | B30: 99600 | C30: 1000 | D30: 5450 | E30: 11513.34 | F30: 2093.2668 | G30: 106756.6068
A31: HPIM M 110 | B31: 98250 | C31: 1000 | D31: 3900 | E31: 11538.06 | F31: 2097.7612 | G31: 106985.8212
A32: TF T 103 / T 105N | B32: 100350 | C32: 1000 | D32: 4700 | E32: 11698.74 | F32: 2126.9748 | G32: 108475.7148
A33: RAFFIA R 103 | B33: 104150 | C33: 1000 | D33: 5500 | E33: 12069.54 | F33: 2194.3908 | G33: 111913.9308
A34: BOPP F 103 / F 103S | B34: 100550 | C34: 1000 | D34: =+[1]PP!F12 -> 4950 | E34: 11692.56 | F34: 2125.8512 | G34: 108418.4112
A35: PP M 108/ M106 | B35: 98150 | C35: 1000 | D35: 4150 | E35: 11494.8 | F35: 2089.896 | G35: 106584.696
A36: PP F135 / E125 | B36: 100150 | C36: 1000 | D36: 5000 | E36: 11636.94 | F36: 2115.7388 | G36: 107902.6788
A37: PP HP OG | B37: 93250 | C37: 0 | D37: 0 | E37: 11525.7 | F37: 2095.514 | G37: 106871.214
A38: PP PS | B38: 89250 | C38: 0 | D38: 0 | E38: 11031.3 | F38: 2005.626 | G38: 102286.926
A39: PP WS | B39: 87250 | C39: 0 | D39: 0 | E39: 10784.1 | F39: 1960.682 | G39: 99994.782
A40: PP CP/RCP | E40: =(B40-C40-D40)*16% -> 0 | G40: =(B40-C40-D40)*16%+(B40-C40-D40) -> 0
A41: PPCP M 311T | B41: 106100 | C41: 1000 | D41: 5850 | E41: =+(B41-C41-D41)*0.1236 -> 12267.3 | F41: =+(B41-C41-D41+E41)*0.02 -> 2230.346 | G41: =+B41-C41-D41+E41+F41 -> 113747.646
A42: PPCP M 340 / M365 | B42: 103800 | C42: 1000 | D42: 5300 | E42: 12051 | F42: 2191.02 | G42: 111742.02
A43: PP CP M 310 | B43: 104500 | C43: 1000 | D43: 5300 | E43: 12137.52 | F43: 2206.7504 | G43: 112544.2704
A44: PP CP M 312 | B44: 102600 | C44: 1000 | D44: 5550 | E44: 11871.78 | F44: 2158.4356 | G44: 110080.2156
A45: PP CP M 304 / M 325 | B45: 102550 | C45: 1000 | D45: 5600 | E45: 11859.42 | F45: 2156.1884 | G45: 109965.6084
A46: PP CP M 307 / M 315 | B46: 102050 | C46: 1000 | D46: 5650 | E46: 11791.44 | F46: 2143.8288 | G46: 109335.2688
A47: PP RCP B 200 | B47: 101900 | C47: 1000 | D47: 5400 | E47: 11803.8 | F47: 2146.076 | G47: 109449.876
A48: PP RCP B202S | B48: 105900 | C48: 1000 | D48: 3100 | E48: 12582.48 | F48: 2287.6496 | G48: 116670.1296
A49: PP RCP M212S | B49: 104100 | C49: 1000 | D49: =+[1]PP!K12 -> 5600 | E49: 12051 | F49: 2191.02 | G49: 111742.02
A50: LLDPE
A51: FILM 71601D | B51: 99450 | C51: 1000 | D51: 6350 | E51: =+(B51-C51-D51)*0.1236 -> 11383.56 | F51: =+(B51-C51-D51+E51)*0.02 -> 2069.6712 | G51: =+B51-C51-D51+E51+F51 -> 105553.2312
A52: FILM 71501S,71601W | B52: 98900 | C52: 1000 | D52: 6800 | E52: 11259.96 | F52: 2047.1992 | G52: 104407.1592
A53: FILM 71602 S / W | B53: 98900 | C53: 1000 | D53: 6800 | E53: 11259.96 | F53: 2047.1992 | G53: 104407.1592
A54: ROTO 73005 T/73204 T | B54: 99750 | C54: 1000 | D54: 5200 | E54: 11562.78 | F54: 2102.2556 | G54: 107215.0356
A55: ROTO 73005 TU | B55: 101250 | C55: 1000 | D55: 5200 | E55: 11748.18 | F55: 2135.9636 | G55: 108934.1436
A56: EC 72307 E | B56: 100950 | C56: 1000 | D56: 6050 | E56: 11606.04 | F56: 2110.1208 | G56: 107616.1608
A57: LLT - 12 | B57: 100450 | C57: 1000 | D57: 6050 | E57: =+(B57-C57-D57)*0.1236 -> 11544.24 | F57: 2098.8848 | G57: 107043.1248
A58: OG | B58: 94400 | C58: 0 | D58: 2100 | E58: 11408.28 | F58: 2074.1656 | G58: 105782.4456
A59: POST SALES QUANTITY DISCOUNT AS APPLICABLE
A60: QTY. MT FOR HD / LL | B60: >= 10 | C60: >=15 | D60: >=30 | E60: >=60 | F60: >= 100 | G60: >= 200 | H60: >= 400
A61: HDPE/LLDPE | B61: 300/- | C61: 300/- | D61: 400/- | E61: 450/- | F61: 550/- | G61: 650/- | H61: 750/-
A62: QTY. MT FOR PP | B62: >=15 | C62: >=30 | D62: >=60 | E62: >=100 | F62: >=200 | G62: >=400
A63: PP | B63: 300/- | C63: 400/- | D63: 450/- | E63: 550/- | F63: 650/- | G63: 750/-
A64: · FOR CREDIT PURCHASE INTREST FREE CREDIT WILL BE 14 DAYS FROM THE DATE OF INVOICE. AN EPI
A65: RS. 70 / MT PER DAY FOR EX-PLANT
A66: · Trade Discount of Rs. 4000 PMT applicable on R103 - to be adjusted pre-exice basis on Ex-plant sales only.
A67: · Trade Discount of Rs. 3000 PMT applicable on R5801 - to be adjusted pre-exice basis on Ex-plant sales only.
A68: · Trade Discount of Rs. 2000 PMT applicable on B5500 - to be adjusted pre-exice basis on Ex-plant sales only.
A69: · NON PRIME GRADE RS.800/MT LESS THAN THE BASIC PRIME GRADE.
A70: · CHEQUE RETURN PENALTY RS.1000/-PER INSTRUMENT.
A71: · UNLOADING & VARAI CHARGES TO BE BORNE BY THE CUSTOMER.
A72: · “C” FORM REQUIRED IN ADVANCE.
A73: · QUANTITY DISCOUNT WOULD NOT BE APPLICABLE ON COMBINATION OF HDPE AND LLDPE GRADES.
A74: · PRICE MAY CHANGE WITHOUT ANY PRIOR NOTICE. PRICE PREVAILING AT THE TIME OF DISPATCH WILL APPLY.
A75: REGARDS
A76: HITESH SHAH - 9820106078
A77: GIRISH SHAH - 9320949656

Sheet MAHA(SOUTH)
A1: GANPATI PETROCHEMICALS
A2: Consigment Stockist of : HALDIA PETROCHEMICALS LTD.
A3: 152,Sanjay Bldg. No. 6,Mittal Ind.Estate,Andheri Kurla Road,Marol,Andheri(East),MUMBAI-400 059.
A4: Tel. 28509801 / 28517451 / 32460637 Telefax. 28509802 / E- MAIL ganpetro@vsnl.com
A5: HDPE / PP / LLDPE PRICES EX-HALDIA PETROCHEMICALS LTD. PLANT FOR MAHARASTRA(SOUTH)
A6: Bhivandi W.H. Add :- Godown No. 20,Thakkar Compound,Valgaon,Anjur Rd,Bhivandi,Dist. Thane. TEL:- 09324038864
A7: HDPE, LLDPE & PP PRICE W.E.F. DT. 13.06.2013
A8: GRADE | B8: BASIC | C8: LESS. | D8: LESS. | E8: ADD | F8: ADD CST | G8: CASH AMT
A9: HDPE | C9: C.D. | D9: LOC.SUB | E9: 0.1236 | F9: 0.02 | G9: PMT
A10: IM 6007L / M 5005L | B10: 95050 | C10: 1000 | D10: 5800 | E10: =+(B10-C10-D10)*0.1236 -> 10907.7 | F10: =+(B10-C10-D10+E10)*0.02 -> 1983.154 | G10: =+B10-C10-D10+E10+F10 -> 101140.854 | I10: TRANS.CHARGES PMT.
A11: IM( 7MFI) M 6007LU | B11: 96550 | C11: 1000 | D11: 5800 | E11: =+(B11-C11-D11)*0.1236 -> 11093.1 | F11: =+(B11-C11-D11+E11)*0.02 -> 2016.862 | G11: =+B11-C11-D11+E11+F11 -> 102859.962
A12: IM( 4.5 MFI ) M 5002L | B12: 94550 | C12: 1000 | D12: 5800 | E12: 10845.9 | F12: 1971.918 | G12: 100567.818
A13: HD BM B 6401 | B13: 94000 | C13: 1000 | D13: 5850 | E13: 10771.74 | F13: 1958.4348 | G13: 99880.1748 | H13: LOCATIONS | I13: FREIGHT | J13: ADD S.T.
A14: HD BM E 5201 | B14: 95500 | C14: 1000 | D14: 5850 | E14: 10957.14 | F14: 1992.1428 | G14: 101599.2828 | H14: **T.D. | I14: RS/MT. | J14: 0.0309
A15: HD BM E5201S | B15: 94500 | C15: 1000 | D15: 5850 | E15: 10833.54 | F15: 1969.6708 | G15: 100453.2108
A16: MBM B 5500 | B16: 97200 | C16: 1000 | D16: 6050 | E16: 11142.54 | F16: 2025.8508 | G16: 103318.3908
A17: HM FILM F 5600/5400 | B17: 94950 | C17: 1000 | D17: 5700 | E17: 10907.7 | F17: 1983.154 | G17: 101140.854 | H17: SANGLI - 6 | I17: 3103 | J17: =+I17*0.0309 -> 95.8827
A18: RAF/MFIL R5801 | B18: 97350 | C18: 1000 | D18: 5650 | E18: 11210.52 | F18: 2038.2104 | G18: 103948.7304 | H18: SATARA - 5 | I18: 3185 | J18: =+I18*0.0309 -> 98.4165
A19: RAF/MFIL HD T9 | B19: 94050 | C19: 1000 | D19: 5650 | E19: 10802.64 | F19: 1964.0528 | G19: 100166.6928 | H19: KOLHAPUR-6 | I19: 3113 | J19: =+I19*0.0309 -> 96.1917
A20: HD FILM HDT6 / F5001 | B20: 95850 | C20: 1000 | D20: 6250 | E20: 10950.96 | F20: 1991.0192 | G20: 101541.9792 | H20: RATNAGIRI - 6 | I20: 3666 | J20: =+I20*0.0309 -> 113.2794
A21: PIPE P5200UV | B21: 98750 | C21: 1000 | D21: 6600 | E21: 11266.14 | F21: 2048.3228 | G21: 104464.4628
A22: IM M 5018L/M 5025L/M5818 | B22: 93900 | C22: 1000 | D22: 5500 | E22: 10802.64 | F22: 1964.0528 | G22: 100166.6928 | H22: WAI | I22: 3189 | J22: =+I22*0.0309 -> 98.5401
A23: RAF HD T10 / HD T10S | B23: 94950 | C23: 1000 | D23: 5650 | E23: 10913.88 | F23: 1984.2776 | G23: 101198.1576 | H23: SOLAPUR - 6 | I23: 3014 | J23: =+I23*0.0309 -> 93.1326
A24: PIPE P 5300 | B24: 100200 | C24: 1000 | D24: 6600 | E24: 11445.36 | F24: 2080.9072 | G24: 106126.2672
A25: PIPE P5200(P.E-63) | B25: 97250 | C25: 1000 | D25: 6600 | E25: 11080.74 | F25: 2014.6148 | G25: 102745.3548
A26: HD T9C | B26: 89750 | C26: 0 | D26: 2000 | E26: 10845.9 | F26: 1971.918 | G26: 100567.818
A27: OG | B27: 88750 | C27: 0 | D27: 2000 | E27: 10722.3 | F27: 1949.446 | G27: 99421.746
A28: PP
A29: FILM F 110 | B29: 99800 | C29: 1000 | D29: 5800 | E29: =+(B29-C29-D29)*0.1236 -> 11494.8 | F29: =+(B29-C29-D29+E29)*0.02 -> 2089.896 | G29: =+B29-C29-D29+E29+F29 -> 106584.696 | H29: *T.D.=TRANSIT DAYS
A30: HPIM M 103 | B30: 99600 | C30: 1000 | D30: 6600 | E30: 11371.2 | F30: 2067.424 | G30: 105438.624
A31: HPIM M 110 | B31: 98250 | C31: 1000 | D31: 5850 | E31: 11297.04 | F31: 2053.9408 | G31: 104750.9808
A32: TF T 103 / T 105N | B32: 100350 | C32: 1000 | D32: 5800 | E32: 11562.78 | F32: 2102.2556 | G32: 107215.0356
A33: RAFFIA R 103 | B33: 104150 | C33: 1000 | D33: 6650 | E33: 11927.4 | F33: 2168.548 | G33: 110595.948
A34: BOPP F 103 / F 103S | B34: 100550 | C34: 1000 | D34: 6000 | E34: 11562.78 | F34: 2102.2556 | G34: 107215.0356
A35: PP M 108/ M106 | B35: 98150 | C35: 1000 | D35: 6050 | E35: 11259.96 | F35: 2047.1992 | G35: 104407.1592
A36: PP F135 / E125 | B36: 100150 | C36: 1000 | D36: 6100 | E36: 11500.98 | F36: 2091.0196 | G36: 106641.9996
A37: PP HP OG | B37: 93250 | C37: 0 | D37: 0 | E37: 11525.7 | F37: 2095.514 | G37: 106871.214
A38: PP PS | B38: 89250 | C38: 0 | D38: 0 | E38: 11031.3 | F38: 2005.626 | G38: 102286.926
A39: PP WS | B39: 87250 | C39: 0 | D39: 0 | E39: 10784.1 | F39: 1960.682 | G39: 99994.782
A40: PP CP/RCP
A41: PPCP M 311T | B41: 106100 | C41: 1000 | D41: 6950 | E41: =+(B41-C41-D41)*0.1236 -> 12131.34 | F41: =+(B41-C41-D41+E41)*0.02 -> 2205.6268 | G41: =+B41-C41-D41+E41+F41 -> 112486.9668
A42: PPCP M 340 / M365 | B42: 103800 | C42: 1000 | D42: 6400 | E42: 11915.04 | F42: 2166.3008 | G42: 110481.3408
A43: PP CP M 310 | B43: 104500 | C43: 1000 | D43: 6350 | E43: 12007.74 | F43: 2183.1548 | G43: 111340.8948
A44: PP CP M 312 | B44: 102600 | C44: 1000 | D44: 6700 | E44: 11729.64 | F44: 2132.5928 | G44: 108762.2328
A45: PP CP M 304 / M 325 | B45: 102550 | C45: 1000 | D45: 6700 | E45: 11723.46 | F45: 2131.4692 | G45: 108704.9292
A46: PP CP M 307 / M 315 | B46: 102050 | C46: 1000 | D46: 6750 | E46: 11655.48 | F46: 2119.1096 | G46: 108074.5896
A47: PP RCP B 200 | B47: 101900 | C47: 1000 | D47: 6500 | E47: 11667.84 | F47: 2121.3568 | G47: 108189.1968
A48: PP RCP B202S | B48: 105900 | C48: 1000 | D48: 3050 | E48: 12588.66 | F48: 2288.7732 | G48: 116727.4332
A49: PP RCP M212S | B49: 104100 | C49: 1000 | D49: 6600 | E49: 11927.4 | F49: 2168.548 | G49: 110595.948
A50: LLDPE
A51: FILM 71601D | B51: 99450 | C51: 1000 | D51: 7000 | E51: =+(B51-C51-D51)*0.1236 -> 11303.22 | F51: =+(B51-C51-D51+E51)*0.02 -> 2055.0644 | G51: =+B51-C51-D51+E51+F51 -> 104808.2844
A52: FILM 71501S,71601W | B52: 98900 | C52: 1000 | D52: 7450 | E52: 11179.62 | F52: 2032.5924 | G52: 103662.2124
A53: FILM 71602 S / W | B53: 98900 | C53: 1000 | D53: 7450 | E53: 11179.62 | F53: 2032.5924 | G53: 103662.2124
A54: ROTO 73005 T/73204 T | B54: 99750 | C54: 1000 | D54: 5800 | E54: 11488.62 | F54: 2088.7724 | G54: 106527.3924
A55: ROTO 73005 TU | B55: 101250 | C55: 1000 | D55: 5800 | E55: 11674.02 | F55: 2122.4804 | G55: 108246.5004
A56: EC 72307 E | B56: 100950 | C56: 1000 | D56: 6850 | E56: 11507.16 | F56: 2092.1432 | G56: 106699.3032
A57: LLT - 12 | B57: 100450 | C57: 1000 | D57: 6850 | E57: =+(B57-C57-D57)*0.1236 -> 11445.36 | F57: 2080.9072 | G57: 106126.2672
A58: OG | B58: 94400 | C58: 0 | D58: 2100 | E58: 11408.28 | F58: 2074.1656 | G58: 105782.4456
A59: POST SALES QUANTITY DISCOUNT AS APPLICABLE
A60: QTY. MT FOR HD / LL | B60: >= 10 | C60: >=15 | D60: >=30 | E60: >=60 | F60: >= 100 | G60: >= 200 | H60: >= 400
A61: HDPE/LLDPE | B61: 300/- | C61: 300/- | D61: 400/- | E61: 450/- | F61: 550/- | G61: 650/- | H61: 750/-
A62: QTY. MT FOR PP | B62: >=15 | C62: >=30 | D62: >=60 | E62: >=100 | F62: >=200 | G62: >=400
A63: PP | B63: 300/- | C63: 400/- | D63: 450/- | E63: 550/- | F63: 650/- | G63: 750/-
A64: · FOR CREDIT PURCHASE INTREST FREE CREDIT WILL BE 14 DAYS FROM THE DATE OF INVOICE. AN EPI
A65: RS. 70 / MT PER DAY FOR EX-PLANT
A66: · Trade Discount of Rs. 4000 PMT applicable on R103 - to be adjusted pre-exice basis on Ex-plant sales only.
A67: · Trade Discount of Rs. 3000 PMT applicable on R5801 - to be adjusted pre-exice basis on Ex-plant sales only.
A68: · Trade Discount of Rs. 2000 PMT applicable on B5500 - to be adjusted pre-exice basis on Ex-plant sales only.
A69: · NON PRIME GRADE RS.800/MT LESS THAN THE BASIC PRIME GRADE.
A70: · CHEQUE RETURN PENALTY RS.1000/-PER INSTRUMENT.
A71: · UNLOADING & VARAI CHARGES TO BE BORNE BY THE CUSTOMER.
A72: · “C” FORM REQUIRED IN ADVANCE.
A73: · QUANTITY DISCOUNT WOULD NOT BE APPLICABLE ON COMBINATION OF HDPE AND LLDPE GRADES.
A74: · PRICE MAY CHANGE WITHOUT ANY PRIOR NOTICE. PRICE PREVAILING AT THE TIME OF DISPATCH WILL APPLY.
A75: REGARDS
A76: HITESH SHAH - 9820106078
A77: GIRISH SHAH - 9320949656

Sheet STOCK POINT
A1: GANPATI PETROCHEMICALS
A2: Consigment Stockist of : HALDIA PETROCHEMICALS LTD.
A3: 152,Sanjay Bldg. No. 6,Mittal Ind.Estate,Andheri Kurla Road,Marol,Andheri(East),MUMBAI-400 059.
A4: Tel. 28509801 / 28517451 Telefax. 28509802 E- MAIL ganpetro@vsnl.com
A5: Bhivandi W.H. Add :- Godown No. 20,Thakkar Compound,Valgaon,Anjur Rd,Bhivandi,Dist. Thane.
A6: Tel :- 02522-271056 , 09324038864, 09967898962
A7: Daman W.H.Add. :- House No. DGGP/10-B, Survey No. 747 & 748, Village Kalaria, Nani Daman,
A8: Daman - 396 210. Tel :- 0260 - 2240086, Mobile - 09377319643
A9: STOCK POINT HD, LL & PP CREDIT PRICE W.E.F. DT. 13.06.2013
C10: BHIVANDI | D10: DAMAN / SILVASSA
B11: HDPE
B12: IM M 6007L / M 5005L | C12: 105622 | D12: 105767
B13: M 5002 L | C13: 105060 | D13: 105205
B14: M5018 L / M 5025L / M5818 | C14: 103733 | D14: 104101
B15: HD BM B 6401 | C15: 104415 | D15: 104504
B16: HD BM/FILM E 5201S | C16: 104977 | D16: 105066
B17: HD BM/FILM E 5201 | C17: 106139 | D17: 106227
B18: HD T10 | C18: 104764 | D18: 105882
B19: HM B 5500 | C19: 105615 | D19: 105703
B20: HM FILM F 5600/5400 | C20: 105108 | D20: 105193
B21: MFIL/RAF R5801 | C21: 105066 | D21: 105211
B22: RAF / HD T 9 / R 6001L | C22: 103905 | D22: 104791
B23: HD T 6 / F 5001 | C23: 105280 | D23: 105652
B24: P5200 ( P.E. - 63 ) | C24: 107345 | D24: 107433
B25: PIPE P 5300 | C25: 110619 | D25: 110765
B26: PIPE P5200UV | C26: 109030 | D26: 109119
B27: PP
B28: FILM F 110 | C28: 111330 | D28: 111510
B29: HPIM M 110 | C29: 109710 | D29: 109860
B30: HPIM M 103 | C30: 110510 | D30: 110550
B31: RAFFIA R 103 | C31: 110980 | D31: 111120
B32: HPIM M108 / M106 | C32: 109370 | D32: 109400
B33: HP PP F135 / E125 | C33: 111610 | D33: 112380
B34: PP F103 | C34: 112180 | D34: 112100
B35: PP CP/RCP
B36: PP CP M 340 / M365 | C36: 115460 | D36: 115430
B37: PP CP M 312 | C37: 113730 | D37: 113820
B38: PP CP M 304 / M 325 | C38: 113680 | D38: 113760
B39: PP CP M 307 / M 315 | C39: 113040 | D39: 113130
B40: PP RCP B 200 | C40: 113160 | D40: 113990
B41: TF T 103 / T 105N | C41: 112180 | D41: 112670
B42: PP CP M 310 | C42: 116320 | D42: 116460
B43: PP RCP M212S | C43: 115570 | D43: 115430
B44: B202S | C44: 121720 | D44: 121750
B45: LLDPE
B46: FILM 71601D | C46: 109043 | D46: 109246
B47: FILM 71601W / 71602 S/W | C47: 107919 | D47: 108122
B48: ROTO 73005 T / 73204 T | C48: 110734 | D48: 110937
B49: ROTO 73005 TU / 73204 TU | C49: 112419 | D49: 112622
B50: FILM 71501 S | C50: 107919 | D50: 108122
B51: EC 72307 E | C51: 111194 | D51: 111282
B52: LLT-12 | C52: 110632 | D52: 110720
A53: The above prices are Credit Prices & are inclusive of Excise Duty @ 12.36 %.
A54: Local VAT Tax and other duties and levies applicable at prevailing rate.
A55: Transportation Charges from our Warehouse in Customers Account.
A56: Cash disc. For Ex-stock sales will be Rs. 1000/- per MT on HDPE, LLDPE, PP & PPCP
A57: Non Prime Grade Rs. 900/MT less than the Prime Grade
A58: on post-ED basis for cash customer.
A59: PRICE MAY CHANGE WITHOUT ANY PRIOR NOTICE. PRICE PREVAILING AT THE TIME OF DISPATCH WILL APPLY.
A60: REGARDS
A61: HITESH SHAH - 9820106078
A62: GIRISH SHAH - 9320949656

Sheet Sheet1
